{"text_format":"1","workbook":"xlsx","n_sheets":9,"sheets":["Information","Conseils","Problématiser","Analyser le budget","Expérimenter","Prioriser","Directives","Prise de décisions","Innover"],"not_rendered":{"charts":8,"images":18,"macros":1,"external_links":0,"defined_names":15,"comments":1,"pivot_tables":0},"unopened":[],"bounds":{"document_bytes":16777216,"sheet_cells":100000,"rows_first":2000,"rows_last":500,"rows_between":2000,"halvings":0,"cell_chars":16384,"cell_head_chars":4096},"cells_cut":0,"cells_raw":0,"read":"whole","date_system":"1900"}

{"sheet":"Information","index":0,"n_rows":25,"n_cols":14,"rows_kept":25,"cut":false,"hidden":false,"merged":[[1,1,1,8],[2,1,2,8],[3,1,3,8],[22,0,22,1],[17,0,17,1],[4,0,4,8],[10,0,10,8],[16,4,16,8],[6,3,6,8],[7,7,7,8],[16,0,16,3],[6,0,6,2],[7,0,7,2],[7,3,7,6],[12,4,12,8],[5,0,5,2],[12,0,12,3],[11,4,11,8],[13,0,14,3],[15,0,15,2],[11,0,11,3],[2,10,3,10],[24,0,24,8],[18,0,18,1],[17,7,17,8],[18,7,18,8],[23,0,23,8],[21,0,21,1],[20,0,20,1],[19,0,19,1],[19,7,19,8],[20,7,20,8],[21,7,21,8],[5,3,5,8],[8,0,8,2],[8,3,8,8],[22,7,22,8]]}
["Document basé sur la méthode PEPI:2018",null,null,null,null,null,null,null,"Enregistrement qualité :  A4 100% vertical"]
[null,"Lignes directrices d'un plan d'expérience innovant applicable à plusieurs secteurs de l'industrie"]
[null,{"$f":"\"- PEPI - \nPlan d'Expérience pour la Performance Innovante,\n un outil pour l'industrie\"","v":"- PEPI - \nPlan d'Expérience pour la Performance Innovante,\n un outil pour l'industrie"},null,null,null,null,null,null,null,null,"Attention : Cet outil a été développé avec le système d'exploitation Windows. Si vous l'utilisez dois Mac ou souhaitez l'imprimer, il se peut que la mise en page soit midifiée.  "]
[null,{"$f":"\"- LE CHOIX D'UNE STRATEGIE GAGANTE  -\"","v":"- LE CHOIX D'UNE STRATEGIE GAGANTE  -"}]
["Attention : Seules les cases blanches écrites en bleu peuvent être modifiées par l’utilisateur. Cela concerne toutes les parties de l’outil."]
["Etablissement :",null,null,"Nom de l'établissement / entreprise / service..."]
[" Responsable d'appliquer PEPI : ",null,null,"NOM et Prénom du Responsable Qualité"]
[" Contact du responsable :",null,null,"Email :",null,null,null,"Tél :"]
["Projet Évalué :",null,null,"Nom du Projet"]
[]
["TABLEAU DE PRÉSENTATION"]
["LETTRE AUX UTILISATEURS",null,null,null,"DESCRIPTION DE PEPI"]
["PEPI, Plan d'Expérience pour la Performance Innovante, vous propose une manière facile et différente de mettre en évidence des paramètres significatifs pour l'évolution continue de la performance industriel. Il vous est destiné à vous, les responsables de projets, les responsables de production, les ingénieurs, les dirigeants, afin de vous offrir un support à la prise de décisions. Gratuit, il est simple d'utilisation et applicable à plusieurs secteurs industriels. \n\nCet outil est aussi votre tableau de bord pour suivre, commenter et préparer les étapes du projet. De plus, il augmentera votre visibilité afin de minimiser les incertitudes. \n\nL'outil est composé de quatre parties respectant l'évolution du projet.\n\nL'équipe PEPI vous souhaite un bon travail.",null,null,null,"PEPI est un outil sous format Excel constitué de neuf onglets :\n- INFORMATION : Explique l'objectif de l'outil et les critères d'évaluation\n    - CONSEILS : Conaissances nécessaires pour appliquer PEPI\n- PROBLEMATISER : Tous les outils nécessaires pour identifier les éléments principaux de la problématique du porjet\n- ANALYSE DE BUDGET : Analyser les budgets spécifiques du projet \n- EXPERIMENTER : Mettre en évidence les données importantes et essentielles concernant le projet à la réalisation du plan d'expérience \n    - PRIORISER : Des directives por la prise de décision\n    - DIRECTIVES : Vision global des résultats d'état des directives\n    - PRISE DE DECISIONS : Résumé chiffré et détaillé des directives évaluées, ainsi que du plan d'action à mettre en œuvre\n- INNOVER : Des conseils de PEPI sont présentés, ainsi qu’un schéma afin d’illustrer le processus."]
[{"$f":"\" - LE CHOIX D'UNE STRATEGIE GAGANTE - \"","v":" - LE CHOIX D'UNE STRATEGIE GAGANTE - "},null,null,null,null,null,null,null,null,null,null,null,"Utilitaires pour l'outil PEPI"]
[null,null,null,null,null,null,null,null,null,null,null,null,"Paramétrage des affectations selon le N° du choix"]
["Placer le curseur ici pour voir le commentaire",null,null,null,null,null,null,null,null,null,null,null,"Utilisé pour  {Reccommandations} : affectation d'un N° selon le choix réalisé"]
["Niveaux d'AVANCEMENT quant à la RÉALISATION \ndes actions associées aux LIGNES DIRECTRICES de PEPI",null,null,null,"LIBELLÉS des niveaux de PRIORITÉ\ndes LIGNES DIRECTRICES de PEPI",null,null,null,null,null,null,null,"Choix proposé","A faire en manuel\nN° du choix croissant selon son  Ordre Alphabétique : 1 à …"]
["Libellés explicites \ndes niveaux d'AVANCEMENT",null,"Choix de \nAVANCEMENT","Taux de \nAVANCEMENT","Taux moyen \nMinimal","Taux moyen\nMaximal","Niveaux de PRIORITÉ","Libellés explicites \ndes niveaux de PRIORITÉ",null,null,null,null,{"$f":"C18","v":"Choix de \nAVANCEMENT"},1]
["Niveau 1 : L'action n'a pas encore été priorisée ou alors de manière insignifiante.",null,"Non commencé",1E-3,0,{"$f":"E20-0.01","v":9.0000000000000011E-2},"Fort","Niveau 1 : ATTENTION ! Réalisation urgente.",null,null,null,null,"Non commencé",2]
["Niveau 2 : Le traitement de l'action a débuté et doit continuer.",null,"Débuté",{"$f":"(E20+F20)/2","v":0.29499999999999998},0.1,{"$f":"E21-0.01","v":0.49},"Haut","Niveau 2 : Il est nécessaire d'agir rapidement.",null,null,null,null,"Débuté",3]
["Niveau 3 : L'action a déjà été priorisée et doit être terminée.",null,"En cours",{"$f":"(E21+F21)/2","v":0.69500000000000006},0.5,{"$f":"E22-0.01","v":0.89},"Moyen","Niveau 3 : Il faudra réaliser cette action tôt ou tard.",null,null,null,null,"En cours",4]
["Niveau 4 : L'action a été priorisée et réalisé complètement.",null,"Réalisé",1,0.9,1,"Faible","Niveau 4 : Il est nécessaire de prioriser les autres directives.",null,null,null,null,"Réalisé",5]
["Niveau non concerné",null,"Non concerné",0,"NC",0,"Non concerné","Niveau non concerné",null,null,null,null,"Non concerné",6]
["NB : Vous pouvez modifier les limites minimales ci-dessus des intervalles de conformité"]
["Pour en savoir plus, voir sur internet : www.utc.fr/master-qualite, puis \"Travaux\" \"Qualité-Management\", réf n°429, juin 2018. \"PEPI : Plan d'Expérience pour la Performance Innovante, un outil pour l'industrie\". Contact de l'outil : Camila ARAUJO : camila.ap.araujo@gmail.com; Contact UTC : gilbert.farges@utc.fr\n"]

{"sheet":"Conseils","index":1,"n_rows":148,"n_cols":7,"rows_kept":148,"cut":false,"hidden":false,"merged":[[36,1,36,11],[37,1,38,11],[8,1,19,7],[20,6,34,11],[1,1,1,11],[2,1,2,11],[3,1,3,11],[5,1,5,11],[7,1,7,11],[65,1,80,6],[82,1,82,11],[83,1,95,11],[49,1,49,11],[50,1,62,6],[64,1,64,11],[147,1,157,11],[110,1,110,11],[111,1,115,11],[127,1,127,11],[128,1,138,11],[146,1,146,11]]}
[]
[null,{"$f":"Information!B2","v":"Lignes directrices d'un plan d'expérience innovant applicable à plusieurs secteurs de l'industrie"}]
[null,{"$f":"Information!B3","v":"- PEPI - \nPlan d'Expérience pour la Performance Innovante,\n un outil pour l'industrie"}]
[null,{"$f":"Information!B4","v":"- LE CHOIX D'UNE STRATEGIE GAGANTE  -"}]
[]
[null,"CONSEILS"]
[]
[null,"1. Approche méthodologique"]
[null,"PEPI, le « Plan d’Expérience pour la Performance Innovante » est un outil stratégique gagnant. Basé d’abord sur l’interprétation de résultats expérimentaux puis sur l’innovation des processus de production. PEPI a été créé dans le but de proposer à l’industrie une façon flexible et différente de résoudre ses problèmes et d’aider les industries à prendre les décisions. \n"]
[]
[]
[]
[]
[]
[]
[]
[]
[]
[]
[]
[null,null,null,null,null,null,"PEPI peut être appliqué dans des secteurs aussi variés que la vente de produit ou service, le développement de produit, les ressources, les processus de réalisation et la logistique. S’il est bien utilisé, il peut apporter une amélioration considérable en relation à la performance attendue par les clients."]
[]
[]
[]
[]
[]
[]
[]
[]
[]
[]
[]
[]
[]
[]
[]
[null,"2. Documentation normative"]
[null,"La connaissance de documentation normative avant d’appliquer une étude statistique facilite et optimise le démarrage du travail. "]
[]
[]
[]
[]
[]
[]
[]
[]
[]
[]
[]
[null,"2. La compréhension du marché industriel"]
[null,"Le marché industriel est un secteur d’activité commercial où les vendeurs et les acheteurs concluent des relations d'affaires dans le but de réaliser des transactions, des accords ou des échanges. Deux forces garantissent principalement le fonctionnement du marché : l’offre et la demande. La première fait référence à la quantité disponible d’un produit que les entreprises veulent ou peuvent vendre. Le deuxième est lié à la quantité de produit que les consommateurs veulent ou peuvent acquérir, c’est-à-dire la demande. En plus de ces deux forces une troisième peut influer grandement sur leur équilibre : le contexte."]
[]
[]
[]
[]
[]
[]
[]
[]
[]
[]
[]
[]
[]
[null,"3. La relation entre le client et l’entreprise "]
[null,"Construire une bonne relation entre le client et l'entreprise est la clé. Les clients doivent être connus, identifiés et soutenus. Pour que cela se produise, il faut savoir maintenir la communication, écouter les besoins et reconnaître leur fidélité. Aujourd'hui, cette proximité est l’une des pratiques les plus courantes dans les entreprises car le développement de la fidélisation des clients est lié à des avantages concurrentiels pour l'entreprise. C’est-à-dire que les entreprises peuvent avoir une importante réduction de coût en raison de faible taux de désabonnement et transformer les clients inactifs en actifs."]
[]
[]
[]
[]
[]
[]
[]
[]
[]
[]
[]
[]
[]
[]
[]
[]
[null,"4. La bataille industrielle pour la performance"]
[null,"Les clients exigent des produits de la meilleure qualité et les systèmes les plus performants, sophistiqués et complexes. Pour répondre à leurs besoins, le secteur de production industrielle bataille quotidiennement avec de nombreux facteurs qui affectent la qualité des produits et génère des coûts évitables comme par exemple l’adaptation aux nouvelles spécifications, le pilotage optimal de machines et la détermination des proportions d’un mélange chimique. Pour une performance solide et durable, la prise de décisions, la gestion et les stratégies choisies sont les facteurs décisifs pour la permanence des entreprises dans le marché industriel.\n\nLe travail dans le secteur de la production comporte quatre phases : la planification, l'exécution, le contrôle et l’action. La planification est l’étape où les objectifs de production vont être transformés en spécifications et où les procédures nécessaires pour exécuter et contrôler la performance vont être définies. Dans les entreprises, les caractéristiques de l'organisation du travail sont définies lorsque le centre de décision établit les lignes directrices du processus de planification et de contrôle du travail."]
[]
[]
[]
[]
[]
[]
[]
[]
[]
[]
[]
[]
[]
[]
[]
[]
[]
[]
[]
[]
[]
[]
[]
[]
[]
[]
[null,"5. Les enjeux principaux à relever : Qualité, Productivité, Délais et Coût (QPDC)"]
[null,"Dans un contexte de production, les enjeux pour l’amélioration de la performance industrielle sont composés par : la qualité, la productivité, les délais et le coût. Dans ce QPD défini par PEPI chaque lettre porte des enjeux différents et a son importance et/ou d’influence sur les problématiques."]
[]
[]
[]
[]
[]
[]
[]
[]
[]
[]
[]
[]
[]
[]
[]
[null,"6. Déploiement de la méthode PEPI"]
[null,"Le Plan d’Expérience pour la Performance Innovante, PEPI, a été conduit grâce à un plan méthodologique d’étude statistique qui s’appuie sur l’identification des phénomènes à étudier et l’obtention de résultats expérimentaux. Afin de comprendre les directives de PEPI et les attentes du projet, il est nécessaire d’avoir une connaissance technique des secteurs d’application et une connaissance méthodologique. La méthode PEPI a été développée comme un support à ce deuxième besoin. Il s’articule autour de 4 étapes qui présentent les avantages d’une stratégie simple associée à une facilité de mise en œuvre opérationnelle : Problématiser, Expérimenter, Prioriser et Innover."]
[]
[]
[]
[]
[]
[]
[]
[]
[]
[]
[]
[]
[]
[]
[]
[]
[]
[null,"6. Déploiement de l'outil PEPI"]
[null,"La méthode PEPI a été adaptée sous forme de programme Excel afin de proposer une manière facile et différente de mettre en évidence des paramètres significatifs pour l'évolution continue de la performance industriel. Il est destiné aux chefs de projets, de production, aux ingénieurs et aux dirigeants, afin d’offrir un support à la prise de décisions. Gratuit, il est simple d'utilisation et applicable à plusieurs secteurs industriels. Cet outil est aussi le tableau de bord pour suivre, commenter et préparer les étapes du projet. Le développement de l’outil PEPI a été structuré sur la base d’une pensée libre. Lors de ce développement l’auteure a classé les idées et priorisé leurs applications. Cette étape a intégré la création d’un programme informatique, d’une marque et d’un logo. Il est composé de neuf parties comme le montre la figure ci-dessous \n\n"]

{"sheet":"Problématiser","index":2,"n_rows":130,"n_cols":7,"rows_kept":130,"cut":false,"hidden":false,"merged":[[129,2,133,5],[101,1,101,6],[107,6,112,6],[127,1,127,6],[118,1,118,6],[98,3,98,4],[92,5,92,6],[93,5,93,6],[94,5,94,6],[95,5,95,6],[96,5,96,6],[97,5,97,6],[98,5,98,6],[96,3,96,4],[92,3,92,4],[93,3,93,4],[94,3,94,4],[95,3,95,4],[97,3,97,4],[89,3,89,4],[90,3,90,4],[84,5,84,6],[85,5,85,6],[86,5,86,6],[87,5,87,6],[88,5,88,6],[89,5,89,6],[90,5,90,6],[92,2,98,2],[84,3,84,4],[85,3,85,4],[86,3,86,4],[77,1,78,1],[77,2,78,6],[80,1,80,6],[82,3,82,4],[82,5,82,6],[83,3,83,4],[83,5,83,6],[91,3,91,4],[91,5,91,6],[84,2,90,2],[87,3,87,4],[88,3,88,4],[71,1,72,1],[71,2,72,6],[73,1,74,1],[73,2,74,6],[75,1,76,1],[75,2,76,6],[65,1,66,1],[65,2,66,6],[67,1,68,1],[67,2,68,6],[69,1,70,1],[69,2,70,6],[41,3,42,5],[44,3,45,5],[48,1,48,6],[49,1,49,6],[26,3,27,5],[29,3,30,5],[32,3,33,5],[35,3,36,5],[38,3,39,5],[24,1,24,2],[1,1,1,6],[2,1,2,2],[2,3,2,6],[3,1,3,2],[3,3,3,5],[3,6,7,6],[4,1,5,2],[4,3,4,5],[5,3,5,4],[6,1,7,2],[6,3,7,5],[9,1,9,6],[11,1,12,6],[10,1,10,6],[23,1,23,6]]}
[]
[null,{"$f":"Information!B3","v":"- PEPI - \nPlan d'Expérience pour la Performance Innovante,\n un outil pour l'industrie"}]
[null,{"$f":"Information!$A$6","v":"Etablissement :"},null,{"$f":"Information!D6","v":"Nom de l'établissement / entreprise / service..."}]
[null,"Date d'application de problématiser : ",null,"Date",null,null,"Signature du responsable du projet :\n\n\n\n\n"]
[null,"Responsable du projet :",null,"NOM et Prénom"]
[null,null,null,"Tél :",null,"@ :"]
[null,"L'équipe du projet :",null,"Nom et Prénom des participants"]
[]
[]
[null,"PROBLEMATISER"]
[null,"Avant-propos"]
[null,"Appliquer les sous-étapes comme montre la figure ci-dessous."]
[]
[]
[]
[]
[]
[]
[]
[]
[]
[]
[]
[null,"Identifier la problématique : 5 Pourquoi"]
[null,"Schéma de comment appliquer les 5 Pourquoi "]
[null,null,null,"Que se passe-t-il ?"]
[null,null,null,"Réponse"]
[]
[null,null,null,"Pourquoi ?"]
[null,null,null,"Réponse"]
[]
[null,null,null,"Pourquoi ?"]
[null,null,null,"Réponse"]
[]
[null,null,null,"Pourquoi ?"]
[null,null,null,"Réponse"]
[]
[null,null,null,"Pourquoi ?"]
[null,null,null,"Réponse"]
[]
[null,null,null,"Pourquoi ?"]
[null,null,null,"Réponse"]
[]
[null,null,null,"Pourquoi ?"]
[null,null,null,"Réponse"]
[]
[]
[]
[null,"Cibler la problématique : QQOQCP"]
[null,"Clarifier et structurer la problématique par QQOQCP "]
[]
[]
[]
[]
[]
[]
[]
[]
[]
[]
[]
[]
[]
[]
[]
[null,"Quoi ?","Réponse"]
[]
[null,"Qui ?","Réponse"]
[]
[null,"Où ?","Réponse"]
[]
[null,"Quand ?","Réponse"]
[]
[null,"Comment ?","Réponse"]
[]
[null,"Combien ?","Réponse"]
[]
[null,"Pourquoi ?","Réponse"]
[]
[]
[null,"Analyser le contexte : SWOT"]
[]
[null,null,null,"POSITIF",null,"NEGATIF"]
[null,null,null,"Forces",null,"Faiblesses"]
[null,null,"ORIGINE INTERNE","Réponse",null,"Réponse"]
[null,null,null,"Réponse",null,"Réponse"]
[null,null,null,"Réponse",null,"Réponse"]
[null,null,null,"Réponse",null,"Réponse"]
[null,null,null,"Réponse",null,"Réponse"]
[null,null,null,"Réponse",null,"Réponse"]
[null,null,null,"Réponse",null,"Réponse"]
[null,null,null,"Opportunités",null,"Menaces"]
[null,null,"ORIGINE EXTERNE","Réponse",null,"Réponse"]
[null,null,null,"Réponse",null,"Réponse"]
[null,null,null,"Réponse",null,"Réponse"]
[null,null,null,"Réponse",null,"Réponse"]
[null,null,null,"Réponse",null,"Réponse"]
[null,null,null,"Réponse",null,"Réponse"]
[null,null,null,"Réponse",null,"Réponse"]
[]
[]
[null,"Identifier les facteurs influents : Ishikawa"]
[]
[null,"Machine",null,"Méthode","Matériel"]
[null,{"$f":"B121","v":"Réponse"},"Réponse",null,null,{"$f":"D121","v":"Réponse"}]
[null,"Réponse","Réponse",null,null,"Réponse"]
[null,"Réponse","Réponse",null,null,"Réponse"]
[null,"Réponse","Réponse",null,null,"Réponse","Problématique"]
[null,"Réponse","Réponse",null,null,"Réponse"]
[null,"Réponse","Réponse",null,null,"Réponse"]
[null,{"$f":"E121","v":"Réponse"},"Réponse",null,null,{"$f":"G121","v":"Réponse"}]
[null,"Réponse","Réponse",null,null,"Réponse"]
[null,"Réponse","Réponse",null,null,"Réponse"]
[null,"Réponse","Réponse",null,null,"Réponse"]
[null,"Réponse","Réponse",null,null,"Réponse"]
[null,"Réponse","Réponse",null,null,"Réponse"]
[null,"Mesure",null,"Main-d'œuvre","Milieu"]
[]
[null,{"$f":"G108","v":"Problématique"}]
[null,"Machine","Méthode","Material","Mesure","Main-d'œuvre","Milieu"]
[null,"Réponse","Réponse","Réponse","Réponse","Réponse","Réponse"]
[null,"Réponse","Réponse","Réponse","Réponse","Réponse","Réponse"]
[null,"Réponse","Réponse","Réponse","Réponse","Réponse","Réponse"]
[null,"Réponse","Réponse","Réponse","Réponse","Réponse","Réponse"]
[null,"Réponse","Réponse","Réponse","Réponse","Réponse","Réponse"]
[null,"Réponse","Réponse","Réponse","Réponse","Réponse","Réponse"]
[]
[null,"Formaliser le sujet d'étude : SMART"]
[]
[null,null,"Ecrire l'objectif SMART"]

{"sheet":"Analyser le budget","index":3,"n_rows":49,"n_cols":10,"rows_kept":49,"cut":false,"hidden":false,"merged":[[1,1,1,9],[3,1,3,5],[5,1,5,5],[6,1,6,5],[12,1,38,1],[4,1,4,5],[4,6,4,9],[5,6,5,9],[6,6,6,9],[8,1,8,9],[39,1,47,4],[48,1,48,5],[3,6,3,9],[21,3,29,4],[30,2,38,4],[12,2,29,2],[12,3,20,3],[12,4,20,4],[10,5,11,5],[10,6,11,6],[10,7,11,7],[10,8,11,8],[10,9,11,9]]}
[]
[null,{"$f":"+Information!B3","v":"- PEPI - \nPlan d'Expérience pour la Performance Innovante,\n un outil pour l'industrie"}]
[]
[null,{"$f":"Problématiser!B3","v":"Etablissement :"},null,null,null,null,{"$f":"Problématiser!D3","v":"Nom de l'établissement / entreprise / service..."}]
[null,{"$f":"Problématiser!B4","v":"Date d'application de problématiser : "},null,null,null,null,{"$f":"Problématiser!D4","v":"Date"}]
[null,{"$f":"Problématiser!B5","v":"Responsable du projet :"},null,null,null,null,{"$f":"Problématiser!D5","v":"NOM et Prénom"}]
[null,{"$f":"Problématiser!B7","v":"L'équipe du projet :"},null,null,null,null,{"$f":"Problématiser!D7","v":"Nom et Prénom des participants"}]
[]
[null,"TABLEAU D'ANALYSE DE BUDGET TOUT AU LONG DU PROJET"]
[]
[null,null,null,null,null,"Description","Quantité","Prix unitaire","Prix Total","Détails"]
[]
[null,null,null,null,"PROBLEMATISER","Ex : budget de vente",null,null,{"$f":"H13*G13","v":0}]
[null,null,null,null,null,"Ex : budget de production",null,null,{"$f":"H14*G14","v":0}]
[null,null,null,null,null,"Ex : budget des matières premières",null,null,0]
[null,null,null,null,null,"Ex : budget des coûts totaux",null,null,0]
[null,null,null,null,null,"Ex : budget général des dépenses",null,null,0]
[null,null,null,null,null,"Ex : budget d'investissement",null,null,0]
[null,null,null,null,null,"Ex : budget de trésorerie",null,null,0]
[null,null,null,null,null,"Ex : budget du résultat",null,null,0]
[null,null,null,null,null,"SOUS TOTAL",null,null,{"$f":"SUM(I13:I20)","v":0}]
[null,null,null,"EXPERIMENTER",null,"Ex : budget de vente",null,null,{"$f":"H22*G22","v":0}]
[null,null,null,null,null,"Ex : budget de production",null,null,{"$f":"H23*G23","v":0}]
[null,null,null,null,null,"Ex : budget des matières premières",null,null,0]
[null,null,null,null,null,"Ex : budget des coûts totaux",null,null,0]
[null,null,null,null,null,"Ex : budget général des dépenses",null,null,0]
[null,null,null,null,null,"Ex : budget d'investissement",null,null,0]
[null,null,null,null,null,"Ex : budget de trésorerie",null,null,0]
[null,null,null,null,null,"Ex : budget du résultat",null,null,0]
[null,null,null,null,null,"SOUS TOTAL",null,null,{"$f":"SUM(I22:I29)","v":0}]
[null,null,"PRIORISER",null,null,"Ex : budget de vente",null,null,{"$f":"H31*G31","v":0}]
[null,null,null,null,null,"Ex : budget de production",null,null,{"$f":"H32*G32","v":0}]
[null,null,null,null,null,"Ex : budget des matières premières",null,null,0]
[null,null,null,null,null,"Ex : budget des coûts totaux",null,null,0]
[null,null,null,null,null,"Ex : budget général des dépenses",null,null,0]
[null,null,null,null,null,"Ex : budget d'investissement",null,null,0]
[null,null,null,null,null,"Ex : budget de trésorerie",null,null,0]
[null,null,null,null,null,"Ex : budget du résultat",null,null,0]
[null,null,null,null,null,"SOUS TOTAL",null,null,{"$f":"SUM(I31:I38)","v":0}]
[null,"INNOVER",null,null,null,"Ex : budget de vente",null,null,{"$f":"H40*G40","v":0}]
[null,null,null,null,null,"Ex : budget de production",null,null,{"$f":"H41*G41","v":0}]
[null,null,null,null,null,"Ex : budget des matières premières",null,null,0]
[null,null,null,null,null,"Ex : budget des coûts totaux",null,null,0]
[null,null,null,null,null,"Ex : budget général des dépenses",null,null,0]
[null,null,null,null,null,"Ex : budget d'investissement",null,null,0]
[null,null,null,null,null,"Ex : budget de trésorerie",null,null,0]
[null,null,null,null,null,"Ex : budget du résultat",null,null,0]
[null,null,null,null,null,"SOUS TOTAL",null,null,{"$f":"SUM(I40:I47)","v":0}]
[null,"TOTAL",null,null,null,null,null,null,{"$f":"SUM(I48,I39,I30,I21)","v":0}]

{"sheet":"Expérimenter","index":4,"n_rows":21,"n_cols":29,"rows_kept":21,"cut":false,"hidden":false,"merged":[[9,7,9,25],[9,26,9,28],[1,1,1,28],[3,7,3,28],[4,7,4,28],[5,7,5,28],[6,7,6,28],[3,1,3,6],[4,1,4,6],[5,1,5,6],[6,1,6,6]]}
[]
[null,{"$f":"+Information!B3","v":"- PEPI - \nPlan d'Expérience pour la Performance Innovante,\n un outil pour l'industrie"}]
[]
[null,{"$f":"Problématiser!B3","v":"Etablissement :"},null,null,null,null,null,{"$f":"Problématiser!D3","v":"Nom de l'établissement / entreprise / service..."}]
[null,{"$f":"Problématiser!B4","v":"Date d'application de problématiser : "},null,null,null,null,null,{"$f":"Problématiser!D4","v":"Date"}]
[null,{"$f":"Problématiser!B5","v":"Responsable du projet :"},null,null,null,null,null,{"$f":"Problématiser!D5","v":"NOM et Prénom"}]
[null,{"$f":"Problématiser!B7","v":"L'équipe du projet :"},null,null,null,null,null,{"$f":"Problématiser!D7","v":"Nom et Prénom des participants"}]
[]
[]
[null,null,null,null,null,null,null,"Tests croisés si nécessaire",null,null,null,null,null,null,null,null,null,null,null,null,null,null,null,null,null,null,"Données essencielles "]
[null,"N°","Dispositif étudié","Facteur(s) à évaluer","Information sur l'état","Origine","Analyse à réaliser","Test N°","Dispositif","Dispositif","Dispositif","Dispositif","Dispositif","Dispositif","Dispositif","Dispositif","Dispositif","Dispositif","Dispositif","Dispositif","Dispositif","Dispositif","Dispositif","Dispositif","Dispositif","Dispositif","Ex : Surface","Ex : Volume","Ex : Quantité testée"]
[null,1,"Dispositif 1",null,null,null,null,1]
[null,2,"Dispositif 2",null,null,null,null,2]
[null,3,"Dispositif 3",null,null,null,null,3]
[null,4,"Dispositif 4",null,null,null,null,4]
[null,5,"Dispositif 5",null,null,null,null,5]
[null,6,"Dispositif 6",null,null,null,null,6]
[null,7,"Dispositif 7",null,null,null,null,7]
[null,8,"Dispositif 8",null,null,null,null,8]
[null,9,"Dispositif 9",null,null,null,null,9]
[null,10,"Dispositif 10",null,null,null,null,10]

{"sheet":"Prioriser","index":5,"n_rows":71,"n_cols":27,"rows_kept":71,"cut":false,"hidden":false,"merged":[[68,5,68,6],[33,5,33,6],[45,5,45,6],[46,5,46,6],[52,5,52,6],[59,5,59,6],[38,5,38,6],[23,5,23,6],[58,5,58,6],[27,5,27,6],[64,5,64,6],[15,5,15,6],[18,5,18,6],[8,1,8,6],[12,8,14,8],[21,8,22,8],[1,1,1,6],[2,1,2,2],[2,3,2,6],[3,1,3,2],[3,3,3,5],[3,6,7,6],[4,1,5,2],[4,3,4,5],[5,3,5,4],[6,1,7,2],[6,3,7,5],[10,5,10,6],[11,5,11,6]]}
[null,{"$f":"Information!A1","v":"Document basé sur la méthode PEPI:2018"},null,null,null,null,"Impression sur pages A4 100% en format horizontal"]
[null,{"$f":"Information!B3","v":"- PEPI - \nPlan d'Expérience pour la Performance Innovante,\n un outil pour l'industrie"}]
[null,{"$f":"Information!$A$6","v":"Etablissement :"},null,{"$f":"Information!D6","v":"Nom de l'établissement / entreprise / service..."}]
[null,"Date d'application de prioriser : ",null,"Date",null,null,"Signature du responsable du projet :\n\n\n\n\n"]
[null,"Responsable du projet :",null,{"$f":"Problématiser!D5","v":"NOM et Prénom"}]
[null,null,null,{"$f":"Problématiser!D6","v":"Tél :"},null,{"$f":"Problématiser!F6","v":"@ :"}]
[null,"L'équipe du projet :",null,{"$f":"Problématiser!D7","v":"Nom et Prénom des participants"}]
[]
[null,"Attention : Le calcul de taux (%) ne prend pas en compte les questions où vous avez répondu \"Non Concerné\". ",null,null,null,null,null,null,null,null,null,null,null,null,null,null,null,"TABLEAU DE FORMULES"]
[null,"Dir.","Directives de PEPI","Evaluation","Taux %","Libellés \ndes évaluations","Modes de preuve \net commentaires",null,null,null,null,null,null,null,null,"Automatique : pondération de chaque directive","Taux de PRIORITE pondéré sur le directive","Niveau de PRIORITE pour le sous-groupes",null,"Automatique : pondération de chaque sous-GROUPE","Taux  moyen de PRIORITÉ pondéré pour le sous-groupes",null,"Somme des pondérations des groupes","Taux moyen de conformité sur PEPI","Niveau d'importance "]
[null,"Groupe 1","Le projet dans son ensemble",{"$f":"V11","v":"Niveau non concerné"},{"$f":"IF($D11=\"Niveau non concerné\",\"Non concerné\",U11)","v":"Non concerné"},{"$f":"IFERROR(IF(E11=Information!$G$23,Information!$H$23,IF(E11<=Information!$F$19,Information!$H$19,IF(E11<=Information!$F$20,Information!$H$20,IF(E11<=Information!$F$21,Information!$H$21,Information!$H$22)))),\"\")","v":"Niveau non concerné"},null,null,null,null,"Quantité des directives","Choix Réalisé",null,"% Veracité du choix",null,"Somme des pondérations sur les directives","Taux  moyen de PRIORITE pour le sous-groupes","vérifier si Somme = 1 =>  ",null,{"$f":"SUM(T12:T45)","v":0},{"$f":"IFERROR(SUM(U12:U45),\"\")","v":0},{"$f":"IFERROR(IF(U11=Information!$D$23,Information!$H$23,IF(U11<=Information!$F$19,Information!$G$19,IF(U11<=Information!$F$20,Information!$G$20,IF(U11<=Information!$F$21,Information!$G$21,Information!$G$22)))),\"\")","v":"Niveau non concerné"},{"$f":"1/3","v":0.33333333333333331},{"$f":"U11*W11","v":0},{"$f":"IFERROR(IF(X11=Information!$F$23,Information!$H$23,IF(X11<=Information!$F$19,Information!$G$19,IF(X11<=Information!$F$20,Information!$G$20,IF(X11<=Information!$F$21,Information!$G$21,Information!$G$22)))),\"\")","v":"Niveau non concerné"},{"$f":"IFERROR(IF(U11=Information!$G$23,Information!$H$23,IF(U11<=Information!$F$19,Information!$H$19,IF(U11<=Information!$F$20,Information!$H$20,IF(U11<=Information!$F$21,Information!$H$21,Information!$H$22)))),\"\")","v":"Niveau 1 : ATTENTION ! Réalisation urgente."}]
[null,"G1.1","Objectif",{"$f":"R12","v":"Niveau non concerné"},{"$f":"IF($D12=\"Niveau non concerné\",\"Non concerné\",$Q12)","v":"Non concerné"},{"$f":"IFERROR(IF(E12=Information!$G$23,Information!$H$23,IF(E12<=Information!$F$19,Information!$H$19,IF(E12<=Information!$F$20,Information!$H$20,IF(E12<=Information!$F$21,Information!$H$21,Information!$H$22)))),\"\")","v":"Niveau non concerné"},null,null,null,null,"Nb dir.","Sous-Groupe","Nº du choix","vérifier si Somme = 1 =>  ",null,{"$f":"SUM(P13:P15)","v":1},{"$f":"IFERROR(SUM(Q13:Q15),\"\")","v":0},{"$f":"IFERROR(IF(Q12=Information!$F$23,Information!$H$23,IF(Q12<=Information!$F$19,Information!$G$19,IF(Q12<=Information!$F$20,Information!$G$20,IF(Q12<=Information!$F$21,Information!$G$21,Information!$G$22)))),\"\")","v":"Niveau non concerné"},{"$f":"IF(R12=\"Niveau non concerné\",1,0)","v":1},{"$f":"IF(R12=\"Niveau non concerné\",0,1/COUNTIF($S$12:$S$39,\"=0\"))","v":0},{"$f":"T12*Q12","v":0},null,null,null,null,null,"Non commencé"]
[null,"Dir01","Les objectifs et les engagements du plan d'expérience sont établis ",null,{"$f":"IF($D13=\"Non concerné\",\"Non concerné\",$N13)","v":""},{"$f":"IF(D13=\"\",\"\",CHOOSE($M13,\"Libellé du critère quand il sera choisi\",Information!$A$19,Information!$A$20,Information!$A$21,Information!$A$22,\"Non concerné\"))","v":""},"Vous pouvez commenter",null,null,null,1,{"$f":"$D13","v":0},{"$f":"IFERROR((VLOOKUP($D13,Information!$M$19:$N$23,2,FALSE)),\"\")","v":""},{"$f":"IFERROR(CHOOSE($M13,\"\",Information!$D$19,Information!$D$20,Information!$D$21,Information!$D$22,Information!$D$23),\"\")","v":""},{"$f":"IF(L13=\"Non Concerné\",1,0)","v":0},{"$f":"IF(L13=\"Non Concerné\",0,1/COUNTIF($O$13:$O$15,\"=0\"))","v":0.33333333333333331},{"$f":"IFERROR(N13*P13,\"\")","v":""},null,null,null,null,null,null,null,null,null,"Débuté"]
[null,"Dir02","Les enjeux qui permettent de définir les objectifs du projet sont identifiés",null,{"$f":"IF($D14=\"Non concerné\",\"Non concerné\",$N14)","v":""},{"$f":"IF(D14=\"\",\"\",CHOOSE($M14,\"Libellé du critère quand il sera choisi\",Information!$A$19,Information!$A$20,Information!$A$21,Information!$A$22,\"Non concerné\"))","v":""},"Vous pouvez commenter",null,null,null,2,{"$f":"D14","v":0},{"$f":"IFERROR((VLOOKUP($D14,Information!$M$19:$N$23,2,FALSE)),\"\")","v":""},{"$f":"IFERROR(CHOOSE($M14,\"\",Information!$D$19,Information!$D$20,Information!$D$21,Information!$D$22,Information!$D$23),\"\")","v":""},{"$f":"IF(L14=\"Non Concerné\",1,0)","v":0},{"$f":"IF(L14=\"Non Concerné\",0,1/COUNTIF($O$13:$O$15,\"=0\"))","v":0.33333333333333331},{"$f":"IFERROR(N14*P14,\"\")","v":""},null,null,null,null,null,null,null,null,null,"En cours"]
[null,"Dir03","Les critères de risque et les mesures de l'impact des risques tiennent compte de tous les objectifs du projet",null,"",{"$f":"IF(D15=\"\",\"\",CHOOSE($M15,\"Libellé du critère quand il sera choisi\",Information!$A$19,Information!$A$20,Information!$A$21,Information!$A$22,\"Non concerné\"))","v":""},"Vous pouvez commenter",null,null,null,3,{"$f":"D15","v":0},{"$f":"IFERROR((VLOOKUP($D15,Information!$M$19:$N$23,2,FALSE)),\"\")","v":""},{"$f":"IFERROR(CHOOSE($M15,\"\",Information!$D$19,Information!$D$20,Information!$D$21,Information!$D$22,Information!$D$23),\"\")","v":""},0,{"$f":"IF(L15=\"Non Concerné\",0,1/COUNTIF($O$13:$O$15,\"=0\"))","v":0.33333333333333331},{"$f":"IFERROR(N15*P15,\"\")","v":""},null,null,null,null,null,null,null,null,null,"Réalisé"]
[null,"G1.2","Contexte",{"$f":"R16","v":"Niveau non concerné"},{"$f":"IF($D16=\"Niveau non concerné\",\"Non concerné\",$Q16)","v":"Non concerné"},{"$f":"IFERROR(IF(E16=Information!$G$23,Information!$H$23,IF(E16<=Information!$F$19,Information!$H$19,IF(E16<=Information!$F$20,Information!$H$20,IF(E16<=Information!$F$21,Information!$H$21,Information!$H$22)))),\"\")","v":"Niveau non concerné"},null,null,null,null,null,"Sous-Groupe",null,"vérifier si Somme = 1 =>  ",null,{"$f":"SUM(P17:P18)","v":1},{"$f":"IFERROR(SUM(Q17:Q18),\"\")","v":0},{"$f":"IFERROR(IF(Q16=Information!$F$23,Information!$H$23,IF(Q16<=Information!$F$19,Information!$G$19,IF(Q16<=Information!$F$20,Information!$G$20,IF(Q16<=Information!$F$21,Information!$G$21,Information!$G$22)))),\"\")","v":"Niveau non concerné"},{"$f":"IF(R16=\"Niveau non concerné\",1,0)","v":1},{"$f":"IF(R16=\"Niveau non concerné\",0,1/COUNTIF($S$12:$S$39,\"=0\"))","v":0},{"$f":"T16*Q16","v":0},null,null,null,null,null,"Non concerné"]
[null,"Dir04","Le contexte du projet est compris, établi et identifié pour toutes les étapes du projet",null,{"$f":"IF($D17=\"Non concerné\",\"Non concerné\",$N17)","v":""},{"$f":"IF(D17=\"\",\"\",CHOOSE($M17,\"Libellé du critère quand il sera choisi\",Information!$A$19,Information!$A$20,Information!$A$21,Information!$A$22,\"Non concerné\"))","v":""},"Vous pouvez commenter",null,null,null,4,{"$f":"D17","v":0},{"$f":"IFERROR((VLOOKUP($D17,Information!$M$19:$N$23,2,FALSE)),\"\")","v":""},{"$f":"IFERROR(CHOOSE($M17,\"\",Information!$D$19,Information!$D$20,Information!$D$21,Information!$D$22,Information!$D$23),\"\")","v":""},0,{"$f":"IF(L17=\"Non Concerné\",0,1/COUNTIF($O$17:$O$18,\"=0\"))","v":0.5},{"$f":"IFERROR(N17*P17,\"\")","v":""}]
[null,"Dir05","Le projet est adapté au contexte dans lequel il se situe",null,"",{"$f":"IF(D18=\"\",\"\",CHOOSE($M18,\"Libellé du critère quand il sera choisi\",Information!$A$19,Information!$A$20,Information!$A$21,Information!$A$22,\"Non concerné\"))","v":""},"Vous pouvez commenter",null,null,null,5,0,{"$f":"IFERROR((VLOOKUP($D18,Information!$M$19:$N$23,2,FALSE)),\"\")","v":""},{"$f":"IFERROR(CHOOSE($M18,\"\",Information!$D$19,Information!$D$20,Information!$D$21,Information!$D$22,Information!$D$23),\"\")","v":""},0,{"$f":"IF(L18=\"Non Concerné\",0,1/COUNTIF($O$17:$O$18,\"=0\"))","v":0.5},{"$f":"IFERROR(N18*P18,\"\")","v":""}]
[null,"G1.3","Stratégie",{"$f":"R19","v":"Niveau non concerné"},{"$f":"IF($D19=\"Niveau non concerné\",\"Non concerné\",$Q19)","v":"Non concerné"},{"$f":"IFERROR(IF(E19=Information!$G$23,Information!$H$23,IF(E19<=Information!$F$19,Information!$H$19,IF(E19<=Information!$F$20,Information!$H$20,IF(E19<=Information!$F$21,Information!$H$21,Information!$H$22)))),\"\")","v":"Niveau non concerné"},null,null,null,null,null,"Sous-Groupe",null,"vérifier si Somme = 1 =>  ",null,{"$f":"SUM(P20:P23)","v":1},{"$f":"IFERROR(SUM(Q20:Q23),\"\")","v":0},{"$f":"IFERROR(IF(Q19=Information!$F$23,Information!$H$23,IF(Q19<=Information!$F$19,Information!$G$19,IF(Q19<=Information!$F$20,Information!$G$20,IF(Q19<=Information!$F$21,Information!$G$21,Information!$G$22)))),\"\")","v":"Niveau non concerné"},{"$f":"IF(R19=\"Niveau non concerné\",1,0)","v":1},{"$f":"IF(R19=\"Niveau non concerné\",0,1/COUNTIF($S$12:$S$39,\"=0\"))","v":0},{"$f":"T19*Q19","v":0}]
[null,"Dir06","La stratégie de l'organisation est comprise par toutes les parties",null,{"$f":"IF($D20=\"Non concerné\",\"Non concerné\",$N20)","v":""},{"$f":"IF(D20=\"\",\"\",CHOOSE($M20,\"Libellé du critère quand il sera choisi\",Information!$A$19,Information!$A$20,Information!$A$21,Information!$A$22,\"Non concerné\"))","v":""},"Vous pouvez commenter",null,null,null,6,0,{"$f":"IFERROR((VLOOKUP($D20,Information!$M$19:$N$23,2,FALSE)),\"\")","v":""},{"$f":"IFERROR(CHOOSE($M20,\"\",Information!$D$19,Information!$D$20,Information!$D$21,Information!$D$22,Information!$D$23),\"\")","v":""},0,{"$f":"IF(L20=\"Non Concerné\",0,1/COUNTIF($O$20:$O$23,\"=0\"))","v":0.25},{"$f":"IFERROR(N20*P20,\"\")","v":""}]
[null,"Dir07","L'avancement de la mise en œuvre du plan d'expérience est intégré au suivi de gestion globale des performances du projet",null,"",{"$f":"IF(D21=\"\",\"\",CHOOSE($M21,\"Libellé du critère quand il sera choisi\",Information!$A$19,Information!$A$20,Information!$A$21,Information!$A$22,\"Non concerné\"))","v":""},"Vous pouvez commenter",null,null,null,7,0,{"$f":"IFERROR((VLOOKUP($D21,Information!$M$19:$N$23,2,FALSE)),\"\")","v":""},{"$f":"IFERROR(CHOOSE($M21,\"\",Information!$D$19,Information!$D$20,Information!$D$21,Information!$D$22,Information!$D$23),\"\")","v":""},0,{"$f":"IF(L21=\"Non Concerné\",0,1/COUNTIF($O$20:$O$23,\"=0\"))","v":0.25},{"$f":"IFERROR(N21*P21,\"\")","v":""}]
[null,"Dir08","Le projet est conforme aux cultures, processus, structures et stratégies des organisations",null,"",{"$f":"IF(D22=\"\",\"\",CHOOSE($M22,\"Libellé du critère quand il sera choisi\",Information!$A$19,Information!$A$20,Information!$A$21,Information!$A$22,\"Non concerné\"))","v":""},"Vous pouvez commenter",null,null,null,8,0,{"$f":"IFERROR((VLOOKUP($D22,Information!$M$19:$N$23,2,FALSE)),\"\")","v":""},{"$f":"IFERROR(CHOOSE($M22,\"\",Information!$D$19,Information!$D$20,Information!$D$21,Information!$D$22,Information!$D$23),\"\")","v":""},0,{"$f":"IF(L22=\"Non Concerné\",0,1/COUNTIF($O$20:$O$23,\"=0\"))","v":0.25},{"$f":"IFERROR(N22*P22,\"\")","v":""}]
[null,"Dir09","Le processus de gestion de projet est organisé, structuré et contrôlé",null,"",{"$f":"IF(D23=\"\",\"\",CHOOSE($M23,\"Libellé du critère quand il sera choisi\",Information!$A$19,Information!$A$20,Information!$A$21,Information!$A$22,\"Non concerné\"))","v":""},"Vous pouvez commenter",null,null,null,9,0,{"$f":"IFERROR((VLOOKUP($D23,Information!$M$19:$N$23,2,FALSE)),\"\")","v":""},{"$f":"IFERROR(CHOOSE($M23,\"\",Information!$D$19,Information!$D$20,Information!$D$21,Information!$D$22,Information!$D$23),\"\")","v":""},0,{"$f":"IF(L23=\"Non Concerné\",0,1/COUNTIF($O$20:$O$23,\"=0\"))","v":0.25},{"$f":"IFERROR(N23*P23,\"\")","v":""}]
[null,"G1.4","Documentation",{"$f":"R24","v":"Niveau non concerné"},{"$f":"IF($D24=\"Niveau non concerné\",\"Non concerné\",$Q24)","v":"Non concerné"},{"$f":"IFERROR(IF(E24=Information!$G$23,Information!$H$23,IF(E24<=Information!$F$19,Information!$H$19,IF(E24<=Information!$F$20,Information!$H$20,IF(E24<=Information!$F$21,Information!$H$21,Information!$H$22)))),\"\")","v":"Niveau non concerné"},null,null,null,null,null,"Sous-Groupe",null,"vérifier si Somme = 1 =>  ",null,{"$f":"SUM(P25:P27)","v":1},{"$f":"IFERROR(SUM(Q25:Q27),\"\")","v":0},{"$f":"IFERROR(IF(Q24=Information!$F$23,Information!$H$23,IF(Q24<=Information!$F$19,Information!$G$19,IF(Q24<=Information!$F$20,Information!$G$20,IF(Q24<=Information!$F$21,Information!$G$21,Information!$G$22)))),\"\")","v":"Niveau non concerné"},{"$f":"IF(R24=\"Niveau non concerné\",1,0)","v":1},{"$f":"IF(R24=\"Niveau non concerné\",0,1/COUNTIF($S$12:$S$39,\"=0\"))","v":0},{"$f":"T24*Q24","v":0}]
[null,"Dir10","Les données historiques appropriées sont incluses dans les informations pertinentes du projet",null,{"$f":"IF($D25=\"Non concerné\",\"Non concerné\",$N25)","v":""},{"$f":"IF(D25=\"\",\"\",CHOOSE($M25,\"Libellé du critère quand il sera choisi\",Information!$A$19,Information!$A$20,Information!$A$21,Information!$A$22,\"Non concerné\"))","v":""},"Vous pouvez commenter",null,null,null,10,{"$f":"D25","v":0},{"$f":"IFERROR((VLOOKUP($D25,Information!$M$19:$N$23,2,FALSE)),\"\")","v":""},{"$f":"IFERROR(CHOOSE($M25,\"\",Information!$D$19,Information!$D$20,Information!$D$21,Information!$D$22,Information!$D$23),\"\")","v":""},{"$f":"IF(L25=\"Non Concerné\",1,0)","v":0},{"$f":"IF(L25=\"Non Concerné\",0,1/COUNTIF($O$25:$O$27,\"=0\"))","v":0.33333333333333331},{"$f":"IFERROR(N25*P25,\"\")","v":""}]
[null,"Dir11","La traçabilité des données est enregistrée jusqu’à leur origine",null,"",{"$f":"IF(D26=\"\",\"\",CHOOSE($M26,\"Libellé du critère quand il sera choisi\",Information!$A$19,Information!$A$20,Information!$A$21,Information!$A$22,\"Non concerné\"))","v":""},"Vous pouvez commenter",null,null,null,11,{"$f":"D26","v":0},{"$f":"IFERROR((VLOOKUP($D26,Information!$M$19:$N$23,2,FALSE)),\"\")","v":""},{"$f":"IFERROR(CHOOSE($M26,\"\",Information!$D$19,Information!$D$20,Information!$D$21,Information!$D$22,Information!$D$23),\"\")","v":""},0,{"$f":"IF(L26=\"Non Concerné\",0,1/COUNTIF($O$25:$O$27,\"=0\"))","v":0.33333333333333331},{"$f":"IFERROR(N26*P26,\"\")","v":""}]
[null,"Dir12","Les processus et procédures en matière de production sont explicités, documentés et pris en compte",null,"",{"$f":"IF(D27=\"\",\"\",CHOOSE($M27,\"Libellé du critère quand il sera choisi\",Information!$A$19,Information!$A$20,Information!$A$21,Information!$A$22,\"Non concerné\"))","v":""},"Vous pouvez commenter",null,null,null,12,{"$f":"D27","v":0},{"$f":"IFERROR((VLOOKUP($D27,Information!$M$19:$N$23,2,FALSE)),\"\")","v":""},{"$f":"IFERROR(CHOOSE($M27,\"\",Information!$D$19,Information!$D$20,Information!$D$21,Information!$D$22,Information!$D$23),\"\")","v":""},0,{"$f":"IF(L27=\"Non Concerné\",0,1/COUNTIF($O$25:$O$27,\"=0\"))","v":0.33333333333333331},{"$f":"IFERROR(N27*P27,\"\")","v":""}]
[null,"G1.5","Responsabilité",{"$f":"R28","v":"Niveau non concerné"},{"$f":"IF($D28=\"Niveau non concerné\",\"Non concerné\",$Q28)","v":"Non concerné"},{"$f":"IFERROR(IF(E28=Information!$G$23,Information!$H$23,IF(E28<=Information!$F$19,Information!$H$19,IF(E28<=Information!$F$20,Information!$H$20,IF(E28<=Information!$F$21,Information!$H$21,Information!$H$22)))),\"\")","v":"Niveau non concerné"},null,null,null,null,null,"Sous-Groupe",null,"vérifier si Somme = 1 =>  ",null,{"$f":"SUM(P29:P33)","v":1},{"$f":"IFERROR(SUM(Q29:Q33),\"\")","v":0},{"$f":"IFERROR(IF(Q28=Information!$F$23,Information!$H$23,IF(Q28<=Information!$F$19,Information!$G$19,IF(Q28<=Information!$F$20,Information!$G$20,IF(Q28<=Information!$F$21,Information!$G$21,Information!$G$22)))),\"\")","v":"Niveau non concerné"},{"$f":"IF(R28=\"Niveau non concerné\",1,0)","v":1},{"$f":"IF(R28=\"Niveau non concerné\",0,1/COUNTIF($S$12:$S$39,\"=0\"))","v":0},{"$f":"T28*Q28","v":0}]
[null,"Dir13","Les responsables du projet engagent leur autorité et leurs compétences techniques tout au long du projet, et dans toutes ses phases",null,{"$f":"IF($D29=\"Non concerné\",\"Non concerné\",$N29)","v":""},{"$f":"IF(D29=\"\",\"\",CHOOSE($M29,\"Libellé du critère quand il sera choisi\",Information!$A$19,Information!$A$20,Information!$A$21,Information!$A$22,\"Non concerné\"))","v":""},"Vous pouvez commenter",null,null,null,"13",{"$f":"D29","v":0},{"$f":"IFERROR((VLOOKUP($D29,Information!$M$19:$N$23,2,FALSE)),\"\")","v":""},{"$f":"IFERROR(CHOOSE($M29,\"\",Information!$D$19,Information!$D$20,Information!$D$21,Information!$D$22,Information!$D$23),\"\")","v":""},{"$f":"IF(L29=\"Non Concerné\",1,0)","v":0},{"$f":"IF(L29=\"Non Concerné\",0,1/COUNTIF($O$29:$O$33,\"=0\"))","v":0.2},{"$f":"IFERROR(N29*P29,\"\")","v":""}]
[null,"Dir14","La perception des parties prenantes est identifiée, enregistrée et prise en compte dans le processus de prise de décision",null,"",{"$f":"IF(D30=\"\",\"\",CHOOSE($M30,\"Libellé du critère quand il sera choisi\",Information!$A$19,Information!$A$20,Information!$A$21,Information!$A$22,\"Non concerné\"))","v":""},"Vous pouvez commenter",null,null,null,"14",{"$f":"D30","v":0},{"$f":"IFERROR((VLOOKUP($D30,Information!$M$19:$N$23,2,FALSE)),\"\")","v":""},{"$f":"IFERROR(CHOOSE($M30,\"\",Information!$D$19,Information!$D$20,Information!$D$21,Information!$D$22,Information!$D$23),\"\")","v":""},0,{"$f":"IF(L30=\"Non Concerné\",0,1/COUNTIF($O$29:$O$33,\"=0\"))","v":0.2},{"$f":"IFERROR(N30*P30,\"\")","v":""}]
[null,"Dir15","Les parties prenantes participent à l’échange efficace d’informations relatives au projet entre elles",null,"",{"$f":"IF(D31=\"\",\"\",CHOOSE($M31,\"Libellé du critère quand il sera choisi\",Information!$A$19,Information!$A$20,Information!$A$21,Information!$A$22,\"Non concerné\"))","v":""},"Vous pouvez commenter",null,null,null,"15",{"$f":"D31","v":0},{"$f":"IFERROR((VLOOKUP($D31,Information!$M$19:$N$23,2,FALSE)),\"\")","v":""},{"$f":"IFERROR(CHOOSE($M31,\"\",Information!$D$19,Information!$D$20,Information!$D$21,Information!$D$22,Information!$D$23),\"\")","v":""},0,{"$f":"IF(L31=\"Non Concerné\",0,1/COUNTIF($O$29:$O$33,\"=0\"))","v":0.2},{"$f":"IFERROR(N31*P31,\"\")","v":""}]
[null,"Dir16","Les parties prenantes sont impliquées tout au long du projet",null,"",{"$f":"IF(D32=\"\",\"\",CHOOSE($M32,\"Libellé du critère quand il sera choisi\",Information!$A$19,Information!$A$20,Information!$A$21,Information!$A$22,\"Non concerné\"))","v":""},"Vous pouvez commenter",null,null,null,"16",{"$f":"D32","v":0},{"$f":"IFERROR((VLOOKUP($D32,Information!$M$19:$N$23,2,FALSE)),\"\")","v":""},{"$f":"IFERROR(CHOOSE($M32,\"\",Information!$D$19,Information!$D$20,Information!$D$21,Information!$D$22,Information!$D$23),\"\")","v":""},0,{"$f":"IF(L32=\"Non Concerné\",0,1/COUNTIF($O$29:$O$33,\"=0\"))","v":0.2},{"$f":"IFERROR(N32*P32,\"\")","v":""}]
[null,"Dir17","Les principes sont respectés par votre organisme",null,"",{"$f":"IF(D33=\"\",\"\",CHOOSE($M33,\"Libellé du critère quand il sera choisi\",Information!$A$19,Information!$A$20,Information!$A$21,Information!$A$22,\"Non concerné\"))","v":""},"Vous pouvez commenter",null,null,null,"17",{"$f":"D33","v":0},{"$f":"IFERROR((VLOOKUP($D33,Information!$M$19:$N$23,2,FALSE)),\"\")","v":""},{"$f":"IFERROR(CHOOSE($M33,\"\",Information!$D$19,Information!$D$20,Information!$D$21,Information!$D$22,Information!$D$23),\"\")","v":""},0,{"$f":"IF(L33=\"Non Concerné\",0,1/COUNTIF($O$29:$O$33,\"=0\"))","v":0.2},{"$f":"IFERROR(N33*P33,\"\")","v":""}]
[null,"G1.6","Communication",{"$f":"R34","v":"Niveau non concerné"},{"$f":"IF($D34=\"Niveau non concerné\",\"Non concerné\",$Q34)","v":"Non concerné"},{"$f":"IFERROR(IF(E34=Information!$G$23,Information!$H$23,IF(E34<=Information!$F$19,Information!$H$19,IF(E34<=Information!$F$20,Information!$H$20,IF(E34<=Information!$F$21,Information!$H$21,Information!$H$22)))),\"\")","v":"Niveau non concerné"},null,null,null,null,null,"Sous-Groupe",null,"vérifier si Somme = 1 =>  ",null,{"$f":"SUM(P35:P38)","v":1},{"$f":"IFERROR(SUM(Q35:Q38),\"\")","v":0},{"$f":"IFERROR(IF(Q34=Information!$F$23,Information!$H$23,IF(Q34<=Information!$F$19,Information!$G$19,IF(Q34<=Information!$F$20,Information!$G$20,IF(Q34<=Information!$F$21,Information!$G$21,Information!$G$22)))),\"\")","v":"Niveau non concerné"},{"$f":"IF(R34=\"Niveau non concerné\",1,0)","v":1},{"$f":"IF(R34=\"Niveau non concerné\",0,1/COUNTIF($S$12:$S$39,\"=0\"))","v":0},{"$f":"T34*Q34","v":0}]
[null,"Dir18","Les informations sont transmises et communiquées à tous les membres de l’équipe du projet",null,{"$f":"IF($D35=\"Non concerné\",\"Non concerné\",$N35)","v":""},{"$f":"IF(D35=\"\",\"\",CHOOSE($M35,\"Libellé du critère quand il sera choisi\",Information!$A$19,Information!$A$20,Information!$A$21,Information!$A$22,\"Non concerné\"))","v":""},"Vous pouvez commenter",null,null,null,"18",{"$f":"D35","v":0},{"$f":"IFERROR((VLOOKUP($D35,Information!$M$19:$N$23,2,FALSE)),\"\")","v":""},{"$f":"IFERROR(CHOOSE($M35,\"\",Information!$D$19,Information!$D$20,Information!$D$21,Information!$D$22,Information!$D$23),\"\")","v":""},0,{"$f":"IF(L35=\"Non Concerné\",0,1/COUNTIF($O$35:$O$38,\"=0\"))","v":0.25},{"$f":"IFERROR(N35*P35,\"\")","v":""}]
[null,"Dir19","Les parties prenantes externes et internes communiquent entre elles à tous les stades du projet",null,"",{"$f":"IF(D36=\"\",\"\",CHOOSE($M36,\"Libellé du critère quand il sera choisi\",Information!$A$19,Information!$A$20,Information!$A$21,Information!$A$22,\"Non concerné\"))","v":""},"Vous pouvez commenter",null,null,null,"19",{"$f":"D36","v":0},{"$f":"IFERROR((VLOOKUP($D36,Information!$M$19:$N$23,2,FALSE)),\"\")","v":""},{"$f":"IFERROR(CHOOSE($M36,\"\",Information!$D$19,Information!$D$20,Information!$D$21,Information!$D$22,Information!$D$23),\"\")","v":""},{"$f":"IF(L36=\"Non Concerné\",1,0)","v":0},{"$f":"IF(L36=\"Non Concerné\",0,1/COUNTIF($O$35:$O$38,\"=0\"))","v":0.25},{"$f":"IFERROR(N36*P36,\"\")","v":""}]
[null,"Dir20","La communication externe est coordonnée et contrôlée par le responsable du projet",null,"",{"$f":"IF(D37=\"\",\"\",CHOOSE($M37,\"Libellé du critère quand il sera choisi\",Information!$A$19,Information!$A$20,Information!$A$21,Information!$A$22,\"Non concerné\"))","v":""},"Vous pouvez commenter",null,null,null,"20",0,{"$f":"IFERROR((VLOOKUP($D37,Information!$M$19:$N$23,2,FALSE)),\"\")","v":""},{"$f":"IFERROR(CHOOSE($M37,\"\",Information!$D$19,Information!$D$20,Information!$D$21,Information!$D$22,Information!$D$23),\"\")","v":""},0,{"$f":"IF(L37=\"Non Concerné\",0,1/COUNTIF($O$35:$O$38,\"=0\"))","v":0.25},{"$f":"IFERROR(N37*P37,\"\")","v":""}]
[null,"Dir21","Les plans de communication et de concertation avec les parties prenantes sont élaborés en début de projet",null,"",{"$f":"IF(D38=\"\",\"\",CHOOSE($M38,\"Libellé du critère quand il sera choisi\",Information!$A$19,Information!$A$20,Information!$A$21,Information!$A$22,\"Non concerné\"))","v":""},"Vous pouvez commenter",null,null,null,"21",0,{"$f":"IFERROR((VLOOKUP($D38,Information!$M$19:$N$23,2,FALSE)),\"\")","v":""},{"$f":"IFERROR(CHOOSE($M38,\"\",Information!$D$19,Information!$D$20,Information!$D$21,Information!$D$22,Information!$D$23),\"\")","v":""},0,{"$f":"IF(L38=\"Non Concerné\",0,1/COUNTIF($O$35:$O$38,\"=0\"))","v":0.25},{"$f":"IFERROR(N38*P38,\"\")","v":""}]
[null,"G1.7","Facteurs d'influence",{"$f":"R39","v":"Niveau non concerné"},{"$f":"IF($D39=\"Niveau non concerné\",\"Non concerné\",$Q39)","v":"Non concerné"},{"$f":"IFERROR(IF(E39=Information!$G$23,Information!$H$23,IF(E39<=Information!$F$19,Information!$H$19,IF(E39<=Information!$F$20,Information!$H$20,IF(E39<=Information!$F$21,Information!$H$21,Information!$H$22)))),\"\")","v":"Niveau non concerné"},null,null,null,null,null,"Sous-Groupe",null,"vérifier si Somme = 1 =>  ",null,{"$f":"SUM(P40:P45)","v":0.99999999999999989},{"$f":"IFERROR(SUM(Q40:Q45),\"\")","v":0},{"$f":"IFERROR(IF(Q39=Information!$F$23,Information!$H$23,IF(Q39<=Information!$F$19,Information!$G$19,IF(Q39<=Information!$F$20,Information!$G$20,IF(Q39<=Information!$F$21,Information!$G$21,Information!$G$22)))),\"\")","v":"Niveau non concerné"},{"$f":"IF(R39=\"Niveau non concerné\",1,0)","v":1},{"$f":"IF(R39=\"Niveau non concerné\",0,1/COUNTIF($S$12:$S$39,\"=0\"))","v":0},{"$f":"T39*Q39","v":0}]
[null,"Dir22","Le projet prend en compte l'origine, les causes et conséquences pour chacun des facteurs identifiés",null,{"$f":"IF($D40=\"Non concerné\",\"Non concerné\",$N40)","v":""},{"$f":"IF(D40=\"\",\"\",CHOOSE($M40,\"Libellé du critère quand il sera choisi\",Information!$A$19,Information!$A$20,Information!$A$21,Information!$A$22,\"Non concerné\"))","v":""},"Vous pouvez commenter",null,null,null,"22",{"$f":"D40","v":0},{"$f":"IFERROR((VLOOKUP($D40,Information!$M$19:$N$23,2,FALSE)),\"\")","v":""},{"$f":"IFERROR(CHOOSE($M40,\"\",Information!$D$19,Information!$D$20,Information!$D$21,Information!$D$22,Information!$D$23),\"\")","v":""},{"$f":"IF(L40=\"Non Concerné\",1,0)","v":0},{"$f":"IF(L40=\"Non Concerné\",0,1/COUNTIF($O$40:$O$45,\"=0\"))","v":0.16666666666666666},{"$f":"IFERROR(N40*P40,\"\")","v":""}]
[null,"Dir23","L'identification des facteurs est faite en fonction de chacune des étapes de production",null,"",{"$f":"IF(D41=\"\",\"\",CHOOSE($M41,\"Libellé du critère quand il sera choisi\",Information!$A$19,Information!$A$20,Information!$A$21,Information!$A$22,\"Non concerné\"))","v":""},"Vous pouvez commenter",null,null,null,"23",0,{"$f":"IFERROR((VLOOKUP($D41,Information!$M$19:$N$23,2,FALSE)),\"\")","v":""},{"$f":"IFERROR(CHOOSE($M41,\"\",Information!$D$19,Information!$D$20,Information!$D$21,Information!$D$22,Information!$D$23),\"\")","v":""},0,{"$f":"IF(L41=\"Non Concerné\",0,1/COUNTIF($O$40:$O$45,\"=0\"))","v":0.16666666666666666},""]
[null,"Dir24","L’identification des facteurs fait appel à toutes les sources d'évaluation disponible",null,"",{"$f":"IF(D42=\"\",\"\",CHOOSE($M42,\"Libellé du critère quand il sera choisi\",Information!$A$19,Information!$A$20,Information!$A$21,Information!$A$22,\"Non concerné\"))","v":""},"Vous pouvez commenter",null,null,null,"24",0,{"$f":"IFERROR((VLOOKUP($D42,Information!$M$19:$N$23,2,FALSE)),\"\")","v":""},{"$f":"IFERROR(CHOOSE($M42,\"\",Information!$D$19,Information!$D$20,Information!$D$21,Information!$D$22,Information!$D$23),\"\")","v":""},0,{"$f":"IF(L42=\"Non Concerné\",0,1/COUNTIF($O$40:$O$45,\"=0\"))","v":0.16666666666666666},""]
[null,"Dir25","Les causes, les conséquences, la probabilité et la criticité sont prises en compte lors de la définition des facteurs",null,"",{"$f":"IF(D43=\"\",\"\",CHOOSE($M43,\"Libellé du critère quand il sera choisi\",Information!$A$19,Information!$A$20,Information!$A$21,Information!$A$22,\"Non concerné\"))","v":""},"Vous pouvez commenter",null,null,null,"25",0,{"$f":"IFERROR((VLOOKUP($D43,Information!$M$19:$N$23,2,FALSE)),\"\")","v":""},{"$f":"IFERROR(CHOOSE($M43,\"\",Information!$D$19,Information!$D$20,Information!$D$21,Information!$D$22,Information!$D$23),\"\")","v":""},0,{"$f":"IF(L43=\"Non Concerné\",0,1/COUNTIF($O$40:$O$45,\"=0\"))","v":0.16666666666666666},""]
[null,"Dir26","Les informations fournies dans les plans de traitement sont toutes identifiées",null,"",{"$f":"IF(D44=\"\",\"\",CHOOSE($M44,\"Libellé du critère quand il sera choisi\",Information!$A$19,Information!$A$20,Information!$A$21,Information!$A$22,\"Non concerné\"))","v":""},"Vous pouvez commenter",null,null,null,"26",0,{"$f":"IFERROR((VLOOKUP($D44,Information!$M$19:$N$23,2,FALSE)),\"\")","v":""},{"$f":"IFERROR(CHOOSE($M44,\"\",Information!$D$19,Information!$D$20,Information!$D$21,Information!$D$22,Information!$D$23),\"\")","v":""},0,{"$f":"IF(L44=\"Non Concerné\",0,1/COUNTIF($O$40:$O$45,\"=0\"))","v":0.16666666666666666},""]
[null,"Dir27","Les indicateurs de performances du plan d'expérience sont déterminés, cohérents et conformes à ceux du projet et des organisations concernées",null,"",{"$f":"IF(D45=\"\",\"\",CHOOSE($M45,\"Libellé du critère quand il sera choisi\",Information!$A$19,Information!$A$20,Information!$A$21,Information!$A$22,\"Non concerné\"))","v":""},"Vous pouvez commenter",null,null,null,"27",0,{"$f":"IFERROR((VLOOKUP($D45,Information!$M$19:$N$23,2,FALSE)),\"\")","v":""},{"$f":"IFERROR(CHOOSE($M45,\"\",Information!$D$19,Information!$D$20,Information!$D$21,Information!$D$22,Information!$D$23),\"\")","v":""},0,{"$f":"IF(L45=\"Non Concerné\",0,1/COUNTIF($O$40:$O$45,\"=0\"))","v":0.16666666666666666},""]
[null,"Groupe 2","Evaluation de besoins du projet",{"$f":"V46","v":"Niveau non concerné"},{"$f":"IF($D46=\"Niveau non concerné\",\"Non concerné\",U46)","v":"Non concerné"},{"$f":"IFERROR(IF(E46=Information!$G$23,Information!$H$23,IF(E46<=Information!$F$19,Information!$H$19,IF(E46<=Information!$F$20,Information!$H$20,IF(E46<=Information!$F$21,Information!$H$21,Information!$H$22)))),\"\")","v":"Niveau non concerné"},null,null,null,null,null,"Groupe",null,null,null,null,null,"vérifier si Somme = 1 =>  ",null,{"$f":"SUM(T47:T58)","v":0},{"$f":"IFERROR(SUM(U47:U58),\"\")","v":0},{"$f":"IFERROR(IF(U46=Information!$D$23,Information!$H$23,IF(U46<=Information!$F$19,Information!$G$19,IF(U46<=Information!$F$20,Information!$G$20,IF(U46<=Information!$F$21,Information!$G$21,Information!$G$22)))),\"\")","v":"Niveau non concerné"},{"$f":"1/3","v":0.33333333333333331},{"$f":"U46*W46","v":0}]
[null,"G2.1","Ressources",{"$f":"R47","v":"Niveau non concerné"},{"$f":"IF($D47=\"Niveau non concerné\",\"Non concerné\",$Q47)","v":"Non concerné"},{"$f":"IFERROR(IF(E47=Information!$G$23,Information!$H$23,IF(E47<=Information!$F$19,Information!$H$19,IF(E47<=Information!$F$20,Information!$H$20,IF(E47<=Information!$F$21,Information!$H$21,Information!$H$22)))),\"\")","v":"Niveau non concerné"},null,null,null,null,null,"Sous-Groupe",null,"vérifier si Somme = 1 =>  ",null,{"$f":"SUM(P48:P52)","v":1},{"$f":"IFERROR(SUM(Q48:Q52),\"\")","v":0},{"$f":"IFERROR(IF(Q47=Information!$F$23,Information!$H$23,IF(Q47<=Information!$F$19,Information!$G$19,IF(Q47<=Information!$F$20,Information!$G$20,IF(Q47<=Information!$F$21,Information!$G$21,Information!$G$22)))),\"\")","v":"Niveau non concerné"},{"$f":"IF(R47=\"Niveau non concerné\",1,0)","v":1},{"$f":"IF(R47=\"Niveau non concerné\",0,1/COUNTIF($S$47:$S$53,\"=0\"))","v":0},{"$f":"T47*Q47","v":0}]
[null,"Dir28","Les ressources nécessaires, les responsabilités et autorités, ainsi que les enregistrements à conserver sont spécifiés",null,{"$f":"IF($D48=\"Non concerné\",\"Non concerné\",$N48)","v":""},{"$f":"IF(D48=\"\",\"\",CHOOSE($M48,\"Libellé du critère quand il sera choisi\",Information!$A$19,Information!$A$20,Information!$A$21,Information!$A$22,\"Non concerné\"))","v":""},"Vous pouvez commenter",null,null,null,"28",{"$f":"D48","v":0},{"$f":"IFERROR((VLOOKUP($D48,Information!$M$19:$N$23,2,FALSE)),\"\")","v":""},{"$f":"IFERROR(CHOOSE($M48,\"\",Information!$D$19,Information!$D$20,Information!$D$21,Information!$D$22,Information!$D$23),\"\")","v":""},{"$f":"IF(L48=\"Non Concerné\",1,0)","v":0},{"$f":"IF(L48=\"Non Concerné\",0,1/COUNTIF($O$48:$O$52,\"=0\"))","v":0.2},{"$f":"IFERROR(N48*P48,\"\")","v":""}]
[null,"Dir29","Les connaissances théoriques nécessaires au projet sont définies, disponibles et prises en compte",null,"",{"$f":"IF(D49=\"\",\"\",CHOOSE($M49,\"Libellé du critère quand il sera choisi\",Information!$A$19,Information!$A$20,Information!$A$21,Information!$A$22,\"Non concerné\"))","v":""},"Vous pouvez commenter",null,null,null,"29",{"$f":"D49","v":0},{"$f":"IFERROR((VLOOKUP($D49,Information!$M$19:$N$23,2,FALSE)),\"\")","v":""},{"$f":"IFERROR(CHOOSE($M49,\"\",Information!$D$19,Information!$D$20,Information!$D$21,Information!$D$22,Information!$D$23),\"\")","v":""},0,{"$f":"IF(L49=\"Non Concerné\",0,1/COUNTIF($O$48:$O$52,\"=0\"))","v":0.2},{"$f":"IFERROR(N49*P49,\"\")","v":""}]
[null,"Dir30","Les ressources financières au projet ont été évaluées",null,"",{"$f":"IF(D50=\"\",\"\",CHOOSE($M50,\"Libellé du critère quand il sera choisi\",Information!$A$19,Information!$A$20,Information!$A$21,Information!$A$22,\"Non concerné\"))","v":""},"Vous pouvez commenter",null,null,null,"30",{"$f":"D50","v":0},{"$f":"IFERROR((VLOOKUP($D50,Information!$M$19:$N$23,2,FALSE)),\"\")","v":""},{"$f":"IFERROR(CHOOSE($M50,\"\",Information!$D$19,Information!$D$20,Information!$D$21,Information!$D$22,Information!$D$23),\"\")","v":""},0,{"$f":"IF(L50=\"Non Concerné\",0,1/COUNTIF($O$48:$O$52,\"=0\"))","v":0.2},{"$f":"IFERROR(N50*P50,\"\")","v":""}]
[null,"Dir31","Les ressources en personnel nécessaires au projet ont été considérées ",null,"",{"$f":"IF(D51=\"\",\"\",CHOOSE($M51,\"Libellé du critère quand il sera choisi\",Information!$A$19,Information!$A$20,Information!$A$21,Information!$A$22,\"Non concerné\"))","v":""},"Vous pouvez commenter",null,null,null,"31",{"$f":"D51","v":0},{"$f":"IFERROR((VLOOKUP($D51,Information!$M$19:$N$23,2,FALSE)),\"\")","v":""},{"$f":"IFERROR(CHOOSE($M51,\"\",Information!$D$19,Information!$D$20,Information!$D$21,Information!$D$22,Information!$D$23),\"\")","v":""},{"$f":"IF(L51=\"Non Concerné\",1,0)","v":0},{"$f":"IF(L51=\"Non Concerné\",0,1/COUNTIF($O$48:$O$52,\"=0\"))","v":0.2},{"$f":"IFERROR(N51*P51,\"\")","v":""}]
[null,"Dir32","Les gains en ressources que peut apporter le projet ont été évalués",null,"",{"$f":"IF(D52=\"\",\"\",CHOOSE($M52,\"Libellé du critère quand il sera choisi\",Information!$A$19,Information!$A$20,Information!$A$21,Information!$A$22,\"Non concerné\"))","v":""},"Vous pouvez commenter",null,null,null,"32",{"$f":"D52","v":0},{"$f":"IFERROR((VLOOKUP($D52,Information!$M$19:$N$23,2,FALSE)),\"\")","v":""},{"$f":"IFERROR(CHOOSE($M52,\"\",Information!$D$19,Information!$D$20,Information!$D$21,Information!$D$22,Information!$D$23),\"\")","v":""},0,{"$f":"IF(L52=\"Non Concerné\",0,1/COUNTIF($O$48:$O$52,\"=0\"))","v":0.2},""]
[null,"G2.2","Financement",{"$f":"R53","v":"Niveau non concerné"},{"$f":"IF($D53=\"Niveau non concerné\",\"Non concerné\",$Q53)","v":"Non concerné"},{"$f":"IFERROR(IF(E53=Information!$G$23,Information!$H$23,IF(E53<=Information!$F$19,Information!$H$19,IF(E53<=Information!$F$20,Information!$H$20,IF(E53<=Information!$F$21,Information!$H$21,Information!$H$22)))),\"\")","v":"Niveau non concerné"},null,null,null,null,null,"Sous-Groupe",null,"vérifier si Somme = 1 =>  ",null,{"$f":"SUM(P54:P58)","v":1},{"$f":"IFERROR(SUM(Q54:Q58),\"\")","v":0},{"$f":"IFERROR(IF(Q53=Information!$F$23,Information!$H$23,IF(Q53<=Information!$F$19,Information!$G$19,IF(Q53<=Information!$F$20,Information!$G$20,IF(Q53<=Information!$F$21,Information!$G$21,Information!$G$22)))),\"\")","v":"Niveau non concerné"},{"$f":"IF(R53=\"Niveau non concerné\",1,0)","v":1},{"$f":"IF(R53=\"Niveau non concerné\",0,1/COUNTIF($S$47:$S$53,\"=0\"))","v":0},{"$f":"T53*Q53","v":0}]
[null,"Dir33","L'imputation des coûts a été clairement définie",null,{"$f":"IF($D54=\"Non concerné\",\"Non concerné\",$N54)","v":""},{"$f":"IF(D54=\"\",\"\",CHOOSE($M54,\"Libellé du critère quand il sera choisi\",Information!$A$19,Information!$A$20,Information!$A$21,Information!$A$22,\"Non concerné\"))","v":""},"Vous pouvez commenter",null,null,null,"33",{"$f":"D54","v":0},{"$f":"IFERROR((VLOOKUP($D54,Information!$M$19:$N$23,2,FALSE)),\"\")","v":""},{"$f":"IFERROR(CHOOSE($M54,\"\",Information!$D$19,Information!$D$20,Information!$D$21,Information!$D$22,Information!$D$23),\"\")","v":""},{"$f":"IF(L54=\"Non Concerné\",1,0)","v":0},{"$f":"IF(L54=\"Non Concerné\",0,1/COUNTIF($O$54:$O$58,\"=0\"))","v":0.2},{"$f":"IFERROR(N54*P54,\"\")","v":""}]
[null,"Dir34","Le coût total du projet a été calculé préalablement",null,"",{"$f":"IF(D55=\"\",\"\",CHOOSE($M55,\"Libellé du critère quand il sera choisi\",Information!$A$19,Information!$A$20,Information!$A$21,Information!$A$22,\"Non concerné\"))","v":""},"Vous pouvez commenter",null,null,null,"34",{"$f":"D55","v":0},{"$f":"IFERROR((VLOOKUP($D55,Information!$M$19:$N$23,2,FALSE)),\"\")","v":""},{"$f":"IFERROR(CHOOSE($M55,\"\",Information!$D$19,Information!$D$20,Information!$D$21,Information!$D$22,Information!$D$23),\"\")","v":""},0,{"$f":"IF(L55=\"Non Concerné\",0,1/COUNTIF($O$54:$O$58,\"=0\"))","v":0.2},{"$f":"IFERROR(N55*P55,\"\")","v":""}]
[null,"Dir35","L'impact de l'échec du projet a été estimé",null,"",{"$f":"IF(D56=\"\",\"\",CHOOSE($M56,\"Libellé du critère quand il sera choisi\",Information!$A$19,Information!$A$20,Information!$A$21,Information!$A$22,\"Non concerné\"))","v":""},"Vous pouvez commenter",null,null,null,"35",{"$f":"D56","v":0},{"$f":"IFERROR((VLOOKUP($D56,Information!$M$19:$N$23,2,FALSE)),\"\")","v":""},{"$f":"IFERROR(CHOOSE($M56,\"\",Information!$D$19,Information!$D$20,Information!$D$21,Information!$D$22,Information!$D$23),\"\")","v":""},{"$f":"IF(L56=\"Non Concerné\",1,0)","v":0},{"$f":"IF(L56=\"Non Concerné\",0,1/COUNTIF($O$54:$O$58,\"=0\"))","v":0.2},{"$f":"IFERROR(N56*P56,\"\")","v":""}]
[null,"Dir36","La rentabilité du projet a été prouvée",null,"",{"$f":"IF(D57=\"\",\"\",CHOOSE($M57,\"Libellé du critère quand il sera choisi\",Information!$A$19,Information!$A$20,Information!$A$21,Information!$A$22,\"Non concerné\"))","v":""},"Vous pouvez commenter",null,null,null,"36",{"$f":"D57","v":0},{"$f":"IFERROR((VLOOKUP($D57,Information!$M$19:$N$23,2,FALSE)),\"\")","v":""},{"$f":"IFERROR(CHOOSE($M57,\"\",Information!$D$19,Information!$D$20,Information!$D$21,Information!$D$22,Information!$D$23),\"\")","v":""},0,{"$f":"IF(L57=\"Non Concerné\",0,1/COUNTIF($O$54:$O$58,\"=0\"))","v":0.2},{"$f":"IFERROR(N57*P57,\"\")","v":""}]
[null,"Dir37","Le budget inclut une marge de sécurité suffisante",null,"",{"$f":"IF(D58=\"\",\"\",CHOOSE($M58,\"Libellé du critère quand il sera choisi\",Information!$A$19,Information!$A$20,Information!$A$21,Information!$A$22,\"Non concerné\"))","v":""},"Vous pouvez commenter",null,null,null,"37",{"$f":"D58","v":0},{"$f":"IFERROR((VLOOKUP($D58,Information!$M$19:$N$23,2,FALSE)),\"\")","v":""},{"$f":"IFERROR(CHOOSE($M58,\"\",Information!$D$19,Information!$D$20,Information!$D$21,Information!$D$22,Information!$D$23),\"\")","v":""},0,{"$f":"IF(L58=\"Non Concerné\",0,1/COUNTIF($O$54:$O$58,\"=0\"))","v":0.2},{"$f":"IFERROR(N58*P58,\"\")","v":""}]
[null,"Groupe 3","Prise en compte des spécifications et réglementations applicables au projet",{"$f":"V59","v":"Niveau non concerné"},{"$f":"IF($D59=\"Niveau non concerné\",\"Non concerné\",U59)","v":"Non concerné"},{"$f":"IFERROR(IF(E59=Information!$G$23,Information!$H$23,IF(E59<=Information!$F$19,Information!$H$19,IF(E59<=Information!$F$20,Information!$H$20,IF(E59<=Information!$F$21,Information!$H$21,Information!$H$22)))),\"\")","v":"Niveau non concerné"},null,null,null,null,null,"Groupe",null,null,null,null,null,"vérifier si Somme = 1 =>  ",null,{"$f":"SUM(T60:T71)","v":0},{"$f":"IFERROR(SUM(U60:U71),\"\")","v":0},{"$f":"IFERROR(IF(U59=Information!$D$23,Information!$H$23,IF(U59<=Information!$F$19,Information!$G$19,IF(U59<=Information!$F$20,Information!$G$20,IF(U59<=Information!$F$21,Information!$G$21,Information!$G$22)))),\"\")","v":"Niveau non concerné"},{"$f":"1/3","v":0.33333333333333331},{"$f":"U59*W59","v":0}]
[null,"G3.1","Prérequis",{"$f":"R60","v":"Niveau non concerné"},{"$f":"IF($D60=\"Niveau non concerné\",\"Non concerné\",$Q60)","v":"Non concerné"},{"$f":"IFERROR(IF(E60=Information!$G$23,Information!$H$23,IF(E60<=Information!$F$19,Information!$H$19,IF(E60<=Information!$F$20,Information!$H$20,IF(E60<=Information!$F$21,Information!$H$21,Information!$H$22)))),\"\")","v":"Niveau non concerné"},null,null,null,null,null,"Sous-Groupe",null,"vérifier si Somme = 1 =>  ",null,{"$f":"SUM(P61:P64)","v":1},{"$f":"IFERROR(SUM(Q61:Q64),\"\")","v":0},{"$f":"IFERROR(IF(Q60=Information!$F$23,Information!$H$23,IF(Q60<=Information!$F$19,Information!$G$19,IF(Q60<=Information!$F$20,Information!$G$20,IF(Q60<=Information!$F$21,Information!$G$21,Information!$G$22)))),\"\")","v":"Niveau non concerné"},{"$f":"IF(R60=\"Niveau non concerné\",1,0)","v":1},{"$f":"IF(R60=\"Niveau non concerné\",0,1/COUNTIF($S$60:$S$69,\"=0\"))","v":0},{"$f":"T60*Q60","v":0}]
[null,"Dir38","Les exigences, ainsi que les réglementations et leur traitement sont documentées",null,{"$f":"IF($D61=\"Non concerné\",\"Non concerné\",$N61)","v":""},{"$f":"IF(D61=\"\",\"\",CHOOSE($M61,\"Libellé du critère quand il sera choisi\",Information!$A$19,Information!$A$20,Information!$A$21,Information!$A$22,\"Non concerné\"))","v":""},"Vous pouvez commenter",null,null,null,"38",{"$f":"D61","v":0},{"$f":"IFERROR((VLOOKUP($D61,Information!$M$19:$N$23,2,FALSE)),\"\")","v":""},{"$f":"IFERROR(CHOOSE($M61,\"\",Information!$D$19,Information!$D$20,Information!$D$21,Information!$D$22,Information!$D$23),\"\")","v":""},{"$f":"IF(L61=\"Non Concerné\",1,0)","v":0},{"$f":"IF(L61=\"Non Concerné\",0,1/COUNTIF($O$61:$O$64,\"=0\"))","v":0.25},{"$f":"IFERROR(N61*P61,\"\")","v":""}]
[null,"Dir39","Les objectifs, les attentes et les spécifications du projet sont bien définis et fixés",null,"",{"$f":"IF(D62=\"\",\"\",CHOOSE($M62,\"Libellé du critère quand il sera choisi\",Information!$A$19,Information!$A$20,Information!$A$21,Information!$A$22,\"Non concerné\"))","v":""},"Vous pouvez commenter",null,null,null,"39",0,{"$f":"IFERROR((VLOOKUP($D62,Information!$M$19:$N$23,2,FALSE)),\"\")","v":""},{"$f":"IFERROR(CHOOSE($M62,\"\",Information!$D$19,Information!$D$20,Information!$D$21,Information!$D$22,Information!$D$23),\"\")","v":""},0,{"$f":"IF(L62=\"Non Concerné\",0,1/COUNTIF($O$61:$O$64,\"=0\"))","v":0.25},{"$f":"IFERROR(N62*P62,\"\")","v":""}]
[null,"Dir40","Les membres du projet connaissent et comprennent les normes et réglementations",null,"",{"$f":"IF(D63=\"\",\"\",CHOOSE($M63,\"Libellé du critère quand il sera choisi\",Information!$A$19,Information!$A$20,Information!$A$21,Information!$A$22,\"Non concerné\"))","v":""},"Vous pouvez commenter",null,null,null,"40",0,{"$f":"IFERROR((VLOOKUP($D63,Information!$M$19:$N$23,2,FALSE)),\"\")","v":""},{"$f":"IFERROR(CHOOSE($M63,\"\",Information!$D$19,Information!$D$20,Information!$D$21,Information!$D$22,Information!$D$23),\"\")","v":""},0,{"$f":"IF(L63=\"Non Concerné\",0,1/COUNTIF($O$61:$O$64,\"=0\"))","v":0.25},{"$f":"IFERROR(N63*P63,\"\")","v":""}]
[null,"Dir41","Les méthodes de mesure  et d'analyse relatives aux normes sont définies ",null,"",{"$f":"IF(D64=\"\",\"\",CHOOSE($M64,\"Libellé du critère quand il sera choisi\",Information!$A$19,Information!$A$20,Information!$A$21,Information!$A$22,\"Non concerné\"))","v":""},"Vous pouvez commenter",null,null,null,"41",0,{"$f":"IFERROR((VLOOKUP($D64,Information!$M$19:$N$23,2,FALSE)),\"\")","v":""},{"$f":"IFERROR(CHOOSE($M64,\"\",Information!$D$19,Information!$D$20,Information!$D$21,Information!$D$22,Information!$D$23),\"\")","v":""},0,{"$f":"IF(L64=\"Non Concerné\",0,1/COUNTIF($O$61:$O$64,\"=0\"))","v":0.25},{"$f":"IFERROR(N64*P64,\"\")","v":""}]
[null,"G3.2","Exigences réglementaires",{"$f":"R65","v":"Niveau non concerné"},{"$f":"IF($D65=\"Niveau non concerné\",\"Non concerné\",$Q65)","v":"Non concerné"},{"$f":"IFERROR(IF(E65=Information!$G$23,Information!$H$23,IF(E65<=Information!$F$19,Information!$H$19,IF(E65<=Information!$F$20,Information!$H$20,IF(E65<=Information!$F$21,Information!$H$21,Information!$H$22)))),\"\")","v":"Niveau non concerné"},null,null,null,null,null,"Sous-Groupe",null,"vérifier si Somme = 1 =>  ",null,{"$f":"SUM(P66:P68)","v":1},{"$f":"IFERROR(SUM(Q66:Q68),\"\")","v":0},{"$f":"IFERROR(IF(Q65=Information!$F$23,Information!$H$23,IF(Q65<=Information!$F$19,Information!$G$19,IF(Q65<=Information!$F$20,Information!$G$20,IF(Q65<=Information!$F$21,Information!$G$21,Information!$G$22)))),\"\")","v":"Niveau non concerné"},{"$f":"IF(R65=\"Niveau non concerné\",1,0)","v":1},{"$f":"IF(R65=\"Niveau non concerné\",0,1/COUNTIF($S$60:$S$69,\"=0\"))","v":0},{"$f":"T65*Q65","v":0}]
[null,"Dir42","Les organisations impliquées dans le projet sont conformes aux exigences légales et réglementaires",null,{"$f":"IF($D66=\"Non concerné\",\"Non concerné\",$N66)","v":""},{"$f":"IF(D66=\"\",\"\",CHOOSE($M66,\"Libellé du critère quand il sera choisi\",Information!$A$19,Information!$A$20,Information!$A$21,Information!$A$22,\"Non concerné\"))","v":""},"Vous pouvez commenter",null,null,null,"42",{"$f":"D66","v":0},{"$f":"IFERROR((VLOOKUP($D66,Information!$M$19:$N$23,2,FALSE)),\"\")","v":""},{"$f":"IFERROR(CHOOSE($M66,\"\",Information!$D$19,Information!$D$20,Information!$D$21,Information!$D$22,Information!$D$23),\"\")","v":""},{"$f":"IF(L66=\"Non Concerné\",1,0)","v":0},{"$f":"IF(L66=\"Non Concerné\",0,1/COUNTIF($O$66:$O$68,\"=0\"))","v":0.33333333333333331},{"$f":"IFERROR(N66*P66,\"\")","v":""}]
[null,"Dir43","Une veille règlementaire est prévue ",null,"",{"$f":"IF(D67=\"\",\"\",CHOOSE($M67,\"Libellé du critère quand il sera choisi\",Information!$A$19,Information!$A$20,Information!$A$21,Information!$A$22,\"Non concerné\"))","v":""},"Vous pouvez commenter",null,null,null,"43",{"$f":"D67","v":0},{"$f":"IFERROR((VLOOKUP($D67,Information!$M$19:$N$23,2,FALSE)),\"\")","v":""},{"$f":"IFERROR(CHOOSE($M67,\"\",Information!$D$19,Information!$D$20,Information!$D$21,Information!$D$22,Information!$D$23),\"\")","v":""},0,{"$f":"IF(L67=\"Non Concerné\",0,1/COUNTIF($O$66:$O$68,\"=0\"))","v":0.33333333333333331},{"$f":"IFERROR(N67*P67,\"\")","v":""}]
[null,"Dir44","Le projet prend en compte toutes les obligations légales, réglementaires et autres exigences",null,"",{"$f":"IF(D68=\"\",\"\",CHOOSE($M68,\"Libellé du critère quand il sera choisi\",Information!$A$19,Information!$A$20,Information!$A$21,Information!$A$22,\"Non concerné\"))","v":""},"Vous pouvez commenter",null,null,null,"44",{"$f":"D68","v":0},{"$f":"IFERROR((VLOOKUP($D68,Information!$M$19:$N$23,2,FALSE)),\"\")","v":""},{"$f":"IFERROR(CHOOSE($M68,\"\",Information!$D$19,Information!$D$20,Information!$D$21,Information!$D$22,Information!$D$23),\"\")","v":""},0,{"$f":"IF(L68=\"Non Concerné\",0,1/COUNTIF($O$66:$O$68,\"=0\"))","v":0.33333333333333331},{"$f":"IFERROR(N68*P68,\"\")","v":""}]
[null,"G3.3","Evolution",{"$f":"R69","v":"Niveau non concerné"},{"$f":"IF($D69=\"Niveau non concerné\",\"Non concerné\",$Q69)","v":"Non concerné"},{"$f":"IFERROR(IF(E69=Information!$G$23,Information!$H$23,IF(E69<=Information!$F$19,Information!$H$19,IF(E69<=Information!$F$20,Information!$H$20,IF(E69<=Information!$F$21,Information!$H$21,Information!$H$22)))),\"\")","v":"Niveau non concerné"},null,null,null,null,null,"Sous-Groupe",null,"vérifier si Somme = 1 =>  ",null,{"$f":"SUM(P70:P71)","v":1},{"$f":"IFERROR(SUM(Q70:Q71),\"\")","v":0},{"$f":"IFERROR(IF(Q69=Information!$F$23,Information!$H$23,IF(Q69<=Information!$F$19,Information!$G$19,IF(Q69<=Information!$F$20,Information!$G$20,IF(Q69<=Information!$F$21,Information!$G$21,Information!$G$22)))),\"\")","v":"Niveau non concerné"},{"$f":"IF(R69=\"Niveau non concerné\",1,0)","v":1},{"$f":"IF(R69=\"Niveau non concerné\",0,1/COUNTIF($S$60:$S$69,\"=0\"))","v":0},{"$f":"T69*Q69","v":0}]
[null,"Dir45","Les progrès et les écarts par rapport aux spécifications sont mesurés régulièrement",null,{"$f":"IF($D70=\"Non concerné\",\"Non concerné\",$N70)","v":""},{"$f":"IF(D70=\"\",\"\",CHOOSE($M70,\"Libellé du critère quand il sera choisi\",Information!$A$19,Information!$A$20,Information!$A$21,Information!$A$22,\"Non concerné\"))","v":""},"Vous pouvez commenter",null,null,null,"45",{"$f":"D70","v":0},{"$f":"IFERROR((VLOOKUP($D70,Information!$M$19:$N$23,2,FALSE)),\"\")","v":""},{"$f":"IFERROR(CHOOSE($M70,\"\",Information!$D$19,Information!$D$20,Information!$D$21,Information!$D$22,Information!$D$23),\"\")","v":""},{"$f":"IF(L70=\"Non Concerné\",1,0)","v":0},{"$f":"IF(L70=\"Non Concerné\",0,1/COUNTIF($O$70:$O$71,\"=0\"))","v":0.5},{"$f":"IFERROR(N70*P70,\"\")","v":""}]
[null,"Dir46","Un contrôle existe pour évaluer les produits par rapport aux spécifications",null,"",{"$f":"IF(D71=\"\",\"\",CHOOSE($M71,\"Libellé du critère quand il sera choisi\",Information!$A$19,Information!$A$20,Information!$A$21,Information!$A$22,\"Non concerné\"))","v":""},"Vous pouvez commenter",null,null,null,"46",0,{"$f":"IFERROR((VLOOKUP($D71,Information!$M$19:$N$23,2,FALSE)),\"\")","v":""},{"$f":"IFERROR(CHOOSE($M71,\"\",Information!$D$19,Information!$D$20,Information!$D$21,Information!$D$22,Information!$D$23),\"\")","v":""},0,{"$f":"IF(L71=\"Non Concerné\",0,1/COUNTIF($O$70:$O$71,\"=0\"))","v":0.5},{"$f":"IFERROR(N71*P71,\"\")","v":""}]

{"sheet":"Directives","index":6,"n_rows":48,"n_cols":25,"rows_kept":48,"cut":false,"hidden":false,"merged":[[15,1,15,4],[30,1,30,8],[21,1,21,8],[22,1,22,5],[22,6,22,8],[23,6,23,8],[24,6,24,8],[28,1,28,5],[1,1,1,8],[3,1,3,2],[3,3,3,4],[4,1,4,2],[4,3,4,4],[4,7,5,8],[5,1,5,2],[7,1,7,8],[8,1,8,4],[8,5,8,8],[12,1,12,4],[14,1,14,4],[13,1,13,4],[9,5,9,6]]}
[null,{"$f":"Information!A1","v":"Document basé sur la méthode PEPI:2018"},null,null,null,null,null,null,"Impression sur pages A4 100% en format horizontal"]
[null,{"$f":"Information!B3","v":"- PEPI - \nPlan d'Expérience pour la Performance Innovante,\n un outil pour l'industrie"}]
[]
[null,{"$f":"Information!A6","v":"Etablissement :"},null,{"$f":"Information!D6","v":"Nom de l'établissement / entreprise / service..."},null,{"$f":"Prioriser!B4","v":"Date d'application de prioriser : "},{"$f":"IFERROR(IF(Prioriser!D4=\"\",\"\",Prioriser!D4),\"\")","v":"Date"},{"$f":"Prioriser!B7","v":"L'équipe du projet :"},{"$f":"Prioriser!D7","v":"Nom et Prénom des participants"}]
[null,{"$f":"Information!A7","v":" Responsable d'appliquer PEPI : "},null,{"$f":"Information!D7","v":"NOM et Prénom du Responsable Qualité"},null,"Responsable :",{"$f":"IF(Prioriser!D5=\"\",\"\",Prioriser!D5)","v":"NOM et Prénom"},{"$f":"Prioriser!D7","v":"Nom et Prénom des participants"}]
[null,null,null,{"$f":"Information!D8","v":"Email :"},{"$f":"Information!H8","v":"Tél :"},{"$f":"Prioriser!D6","v":"Tél :"},{"$f":"Prioriser!F6","v":"@ :"}]
[]
[null,"TABLEAUX DE BORD de l'évaluation de DIRECTIVES de PEPI",null,null,null,null,null,null,null,null,null,null,null,null,"Utilitaires pour les CALCULS et les GRAPHIQUES"]
[null,{"$f":"CONCATENATE(\"Niveaux d'AVANCEMENT des \", U12,  \" directives évaluées\")","v":"Niveaux d'AVANCEMENT des 0 directives évaluées"},null,null,null,"Résultat global par groupe de directives"]
[null,null,null,null,null,"Moyenne générale :",null,{"$f":"H33","v":0},{"$f":"F33","v":"Niveau non concerné"},null,null,null,"Histogramme des niveaux d'avancement",null,null,null,null,"Histogramme des niveaux de PRIORITÉ"]
[null,null,null,null,null,null,null,null,null,null,null,null,"AVANCEMENT","Nb de directives","Tracer la moyenne",null,"PRIORITÉ",null,"Nb de directives","Ecart vs Total des directives","Total des directives","Total des directives"]
[null,null,null,null,null,null,null,null,null,null,null,null,"Niveaux",{"$f":"SUM(N13:N16)","v":0},": Total ou 0",{"$f":"U12/4","v":0},"Niveaux","N°",{"$f":"SUM(S13:S16)","v":0},{"$f":"46-(S12+S17)","v":46},{"$f":"S18-S17","v":0},{"$f":"S12+S17","v":0}]
[null,{"$f":"CONCATENATE(\"Attention : \",$S$17,\" directives ne sont pas concernées\")","v":"Attention : 0 directives ne sont pas concernées"},null,null,null,null,null,null,null,null,null,null,"Fort",{"$f":"IFERROR(COUNTIFS($G$35:$G$48,M13),0)","v":0},{"$f":"IF($F$33=M13,$P$12,0)","v":0},null,"Non commencé",{"$f":"Information!N19","v":2},{"$f":"IFERROR(COUNTIFS(Prioriser!$M:$M,Directives!$R13),0)","v":0},null,null,{"$f":"S12+S17","v":0}]
[null,{"$f":"IF($S$12<$U$12,CONCATENATE(\"Attention : \",$T$12,\" directives ne sont pas encore traités\"),\"\")","v":""},null,null,null,null,null,null,null,null,null,null,"Haut",{"$f":"IFERROR(COUNTIFS($G$35:$G$48,M14),0)","v":0},{"$f":"IF($F$33=M14,$P$12,0)","v":0},null,"Débuté",{"$f":"Information!N20","v":3},{"$f":"IFERROR(COUNTIFS(Prioriser!$M:$M,Directives!$R14),0)","v":0},null,null,{"$f":"V12-V13","v":0}]
[null,"Niveaux de PRIORITÉ des LIGNES DIRECTRICES de PEPI",null,null,null,null,null,null,null,null,null,null,"Moyen",{"$f":"IFERROR(COUNTIFS($G$35:$G$48,M15),0)","v":0},{"$f":"IF($F$33=M15,$P$12,0)","v":0},null,"En cours",{"$f":"Information!N21","v":4},{"$f":"IFERROR(COUNTIFS(Prioriser!$M:$M,Directives!$R15),0)","v":0}]
[null,null,null,null,null,null,null,null,null,null,null,null,"Faible",{"$f":"IFERROR(COUNTIFS($G$35:$G$48,M16),0)","v":0},{"$f":"IF($F$33=M16,$P$12,0)","v":0},null,"Réalisé",{"$f":"Information!N22","v":5},{"$f":"IFERROR(COUNTIFS(Prioriser!$M:$M,Directives!$R16),0)","v":0}]
[null,null,null,null,null,null,null,null,null,null,null,null,null,null,null,null,"Non concerné",{"$f":"Information!N23","v":6},{"$f":"IFERROR(COUNTIFS(Prioriser!$M:$M,Directives!$R17),0)","v":0}]
[null,null,null,null,null,null,null,null,null,null,null,null,null,null,null,null,null,{"$f":"\"Total directives - directives non concernés\"","v":"Total directives - directives non concernés"},{"$f":"SUM(S13:S17)","v":0}]
[]
[]
[]
[null,"BILAN, COMMENTAIRES et PLANS D'AMÉLIORATION"]
[null,"Taux de PRIORITE aux directives pour tous les GROUPES formulés",null,null,null,null,"COMMENTAIRES sur les RÉSULTATS obtenus"]
[null,null,null,null,null,null,"Commentaires  :"]
[null,null,null,null,null,null,"DÉCISION : Plan d'action PRIORITAIRE"]
[null,null,null,null,null,null,"QUOI\nObjectifs à atteindre","QUI\nen Interne ou en Externe","QUAND ET OÙ\nDate et Champ d'application"]
[null,null,null,null,null,null,"Action n°1 :"]
[null,null,null,null,null,null,"Action n°2 :"]
[null,null,null,null,null,null,"Action n°3 :"]
[]
[null,"Tableau de SYNTHÈSE des résultats par groupe",null,null,null,null,null,null,null,null,null,null,null,null,"Coloriage des zones des GROUPES",null,null,null,null,"Tracage de la limite de PRIORITÉ"]
[null,null,null,null,null,null,"Evaluations","Taux %","Niveaux d'IMPORTANCE",null,null,null,{"$f":"CONCATENATE(\"Fond \",B34)","v":"Fond Groupe 1"},{"$f":"CONCATENATE(\"Fond \",B42)","v":"Fond Groupe 2"},{"$f":"CONCATENATE(\"Fond \",B45)","v":"Fond Groupe 3"},null,null,null,null,{"$f":"Information!E22","v":0.9}]
[null,"Niveau moyen sur l'ensemble des directives",null,null,null,{"$f":"IFERROR(IF(H33=Information!$D$23,Information!$H$23,IF(H33<=Information!$F$19,Information!$G$19,IF(H33<=Information!$F$20,Information!$G$20,IF(H33<=Information!$F$21,Information!$G$21,Information!$G$22)))),\"\")","v":"Niveau non concerné"},null,{"$f":"SUM(Y35:Y45)","v":0},{"$f":"IF(F33=Information!H23,\"Niveau non concerné\",PROPER(MID(Prioriser!Z11,1,9)))","v":"Niveau non concerné"},null,null,null,null,null,null,"Utilitaires pour les CALCULS et les GRAPHIQUES"]
[null,{"$f":"Prioriser!B11","v":"Groupe 1"},{"$f":"Prioriser!C11","v":"Le projet dans son ensemble"},null,null,{"$f":"Prioriser!D11","v":"Niveau non concerné"},null,{"$f":"IF(Prioriser!E11=\"Non concerné\",0,Prioriser!E11)","v":0},{"$f":"IF(F34=Information!$H$23,\"Niveau non concerné\",PROPER(MID(Prioriser!F11,1,9)))","v":"Niveau non concerné"}]
[null,null,{"$f":"Prioriser!B12","v":"G1.1"},{"$f":"VLOOKUP($C35,Prioriser!$B$12:$C$71,2,FALSE)","v":"Objectif"},null,null,{"$f":"Prioriser!D12","v":"Niveau non concerné"},{"$f":"IF(Prioriser!E12=\"Non concerné\",0,Prioriser!E12)","v":0},{"$f":"IF(G35=Information!$H$23,\"Niveau non concerné\",PROPER(MID(Prioriser!F12,1,9)))","v":"Niveau non concerné"},null,null,null,1,0,0,null,null,null,null,{"$f":"$T$32","v":0.9},null,null,{"$f":"IF(F34=\"Niveau non concerné\",1,0)","v":1},{"$f":"IF(F34=\"Niveau non concerné\",0,1/COUNTIF($W$35:$W$45,\"=0\"))","v":0},{"$f":"H34*X35","v":0}]
[null,null,{"$f":"Prioriser!B16","v":"G1.2"},{"$f":"VLOOKUP($C36,Prioriser!$B$12:$C$71,2,FALSE)","v":"Contexte"},null,null,{"$f":"Prioriser!D16","v":"Niveau non concerné"},{"$f":"IF(Prioriser!E16=\"Non concerné\",0,Prioriser!E16)","v":0},{"$f":"IF(G36=Information!$H$23,\"Niveau non concerné\",PROPER(MID(Prioriser!F16,1,9)))","v":"Niveau non concerné"},null,null,null,1,0,0,null,null,null,null,{"$f":"$T$32","v":0.9}]
[null,null,{"$f":"Prioriser!B19","v":"G1.3"},{"$f":"VLOOKUP($C37,Prioriser!$B$12:$C$71,2,FALSE)","v":"Stratégie"},null,null,{"$f":"Prioriser!D19","v":"Niveau non concerné"},{"$f":"IF(Prioriser!E19=\"Non concerné\",0,Prioriser!E19)","v":0},{"$f":"IF(G37=Information!$H$23,\"Niveau non concerné\",PROPER(MID(Prioriser!F19,1,9)))","v":"Niveau non concerné"},null,null,null,1,0,0,null,null,null,null,{"$f":"$T$32","v":0.9}]
[null,null,{"$f":"Prioriser!B24","v":"G1.4"},{"$f":"VLOOKUP($C38,Prioriser!$B$12:$C$71,2,FALSE)","v":"Documentation"},null,null,{"$f":"Prioriser!D24","v":"Niveau non concerné"},{"$f":"IF(Prioriser!E24=\"Non concerné\",0,Prioriser!E24)","v":0},{"$f":"IF(G38=Information!$H$23,\"Niveau non concerné\",PROPER(MID(Prioriser!F24,1,9)))","v":"Niveau non concerné"}]
[null,null,{"$f":"Prioriser!B28","v":"G1.5"},{"$f":"VLOOKUP($C39,Prioriser!$B$12:$C$71,2,FALSE)","v":"Responsabilité"},null,null,{"$f":"Prioriser!D28","v":"Niveau non concerné"},{"$f":"IF(Prioriser!E28=\"Non concerné\",0,Prioriser!E28)","v":0},{"$f":"IF(G39=Information!$H$23,\"Niveau non concerné\",PROPER(MID(Prioriser!F28,1,9)))","v":"Niveau non concerné"}]
[null,null,{"$f":"Prioriser!B34","v":"G1.6"},{"$f":"VLOOKUP($C40,Prioriser!$B$12:$C$71,2,FALSE)","v":"Communication"},null,null,{"$f":"Prioriser!D34","v":"Niveau non concerné"},{"$f":"IF(Prioriser!E34=\"Non concerné\",0,Prioriser!E34)","v":0},{"$f":"IF(G40=Information!$H$23,\"Niveau non concerné\",PROPER(MID(Prioriser!F34,1,9)))","v":"Niveau non concerné"}]
[null,null,{"$f":"Prioriser!B39","v":"G1.7"},{"$f":"VLOOKUP($C41,Prioriser!$B$12:$C$71,2,FALSE)","v":"Facteurs d'influence"},null,null,{"$f":"Prioriser!D39","v":"Niveau non concerné"},{"$f":"IF(Prioriser!E39=\"Non concerné\",0,Prioriser!E39)","v":0},{"$f":"IF(G41=Information!$H$23,\"Niveau non concerné\",PROPER(MID(Prioriser!F39,1,9)))","v":"Niveau non concerné"},null,null,null,1,0,0,null,null,null,null,{"$f":"$T$32","v":0.9}]
[null,{"$f":"Prioriser!B46","v":"Groupe 2"},{"$f":"Prioriser!C46","v":"Evaluation de besoins du projet"},null,null,{"$f":"Prioriser!D46","v":"Niveau non concerné"},null,{"$f":"IF(Prioriser!E46=\"Non concerné\",0,Prioriser!E46)","v":0},{"$f":"IF(F42=Information!$H$23,\"Niveau non concerné\",PROPER(MID(Prioriser!F46,1,9)))","v":"Niveau non concerné"},null,null,null,null,null,null,null,null,null,null,null,null,null,{"$f":"IF(F42=\"Niveau non concerné\",1,0)","v":1},{"$f":"IF(F42=\"Niveau non concerné\",0,1/COUNTIF($W$35:$W$45,\"=0\"))","v":0},{"$f":"H42*X42","v":0}]
[null,null,{"$f":"Prioriser!B47","v":"G2.1"},{"$f":"VLOOKUP($C43,Prioriser!$B$12:$C$71,2,FALSE)","v":"Ressources"},null,null,{"$f":"Prioriser!D47","v":"Niveau non concerné"},{"$f":"IF(Prioriser!E47=\"Non concerné\",0,Prioriser!E47)","v":0},{"$f":"IF(G43=Information!$H$23,\"Niveau non concerné\",PROPER(MID(Prioriser!F47,1,9)))","v":"Niveau non concerné"},null,null,null,1,1,0,null,null,null,null,{"$f":"$T$32","v":0.9}]
[null,null,{"$f":"Prioriser!B53","v":"G2.2"},{"$f":"VLOOKUP($C44,Prioriser!$B$12:$C$71,2,FALSE)","v":"Financement"},null,null,{"$f":"Prioriser!D53","v":"Niveau non concerné"},{"$f":"IF(Prioriser!E53=\"Non concerné\",0,Prioriser!E53)","v":0},{"$f":"IF(G44=Information!$H$23,\"Niveau non concerné\",PROPER(MID(Prioriser!F53,1,9)))","v":"Niveau non concerné"},null,null,null,0,1,0,null,null,null,null,{"$f":"$T$32","v":0.9}]
[null,{"$f":"Prioriser!B59","v":"Groupe 3"},{"$f":"Prioriser!C59","v":"Prise en compte des spécifications et réglementations applicables au projet"},null,null,{"$f":"Prioriser!D59","v":"Niveau non concerné"},null,{"$f":"IF(Prioriser!E59=\"Non concerné\",0,Prioriser!E59)","v":0},{"$f":"IF(F45=Information!$H$23,\"Niveau non concerné\",PROPER(MID(Prioriser!F59,1,9)))","v":"Niveau non concerné"},null,null,null,null,null,null,null,null,null,null,null,null,null,{"$f":"IF(F45=\"Niveau non concerné\",1,0)","v":1},{"$f":"IF(F45=\"Niveau non concerné\",0,1/COUNTIF($W$35:$W$45,\"=0\"))","v":0},{"$f":"H45*X45","v":0}]
[null,null,{"$f":"Prioriser!B60","v":"G3.1"},{"$f":"VLOOKUP($C46,Prioriser!$B$12:$C$71,2,FALSE)","v":"Prérequis"},null,null,{"$f":"Prioriser!D60","v":"Niveau non concerné"},{"$f":"IF(Prioriser!E60=\"Non concerné\",0,Prioriser!E60)","v":0},{"$f":"IF(G46=Information!$H$23,\"Niveau non concerné\",PROPER(MID(Prioriser!F60,1,9)))","v":"Niveau non concerné"},null,null,null,0,1,1,null,null,null,null,{"$f":"$T$32","v":0.9}]
[null,null,{"$f":"Prioriser!B65","v":"G3.2"},{"$f":"VLOOKUP($C47,Prioriser!$B$12:$C$71,2,FALSE)","v":"Exigences réglementaires"},null,null,{"$f":"Prioriser!D65","v":"Niveau non concerné"},{"$f":"IF(Prioriser!E65=\"Non concerné\",0,Prioriser!E65)","v":0},{"$f":"IF(G47=Information!$H$23,\"Niveau non concerné\",PROPER(MID(Prioriser!F65,1,9)))","v":"Niveau non concerné"},null,null,null,0,0,1,null,null,null,null,{"$f":"$T$32","v":0.9}]
[null,null,{"$f":"Prioriser!B69","v":"G3.3"},{"$f":"VLOOKUP($C48,Prioriser!$B$12:$C$71,2,FALSE)","v":"Evolution"},null,null,{"$f":"Prioriser!D69","v":"Niveau non concerné"},{"$f":"IF(Prioriser!E69=\"Non concerné\",0,Prioriser!E69)","v":0},{"$f":"IF(G48=Information!$H$23,\"Niveau non concerné\",PROPER(MID(Prioriser!F69,1,9)))","v":"Niveau non concerné"},null,null,null,0,0,1,null,null,null,null,{"$f":"$T$32","v":0.9}]

{"sheet":"Prise de décisions","index":7,"n_rows":33,"n_cols":9,"rows_kept":33,"cut":false,"hidden":false,"merged":[[17,6,17,8],[18,6,18,8],[1,1,1,8],[26,6,26,8],[27,6,27,8],[28,6,28,8],[3,1,3,2],[3,3,3,4],[4,7,5,8],[8,6,8,8],[3,7,3,8],[4,1,4,2],[4,3,4,4],[5,1,5,2],[9,6,9,8],[10,6,10,8],[19,6,19,8]]}
[null,{"$f":"Information!A1","v":"Document basé sur la méthode PEPI:2018"},null,null,null,null,null,null,"Impression sur pages A4 100% en format horizontal"]
[null,{"$f":"Information!B3","v":"- PEPI - \nPlan d'Expérience pour la Performance Innovante,\n un outil pour l'industrie"}]
[]
[null,{"$f":"Information!A6","v":"Etablissement :"},null,{"$f":"Information!D6","v":"Nom de l'établissement / entreprise / service..."},null,{"$f":"Prioriser!B4","v":"Date d'application de prioriser : "},{"$f":"IFERROR(IF(Prioriser!D4=\"\",\"\",Prioriser!D4),\"\")","v":"Date"},{"$f":"Prioriser!B7","v":"L'équipe du projet :"}]
[null,{"$f":"Information!A7","v":" Responsable d'appliquer PEPI : "},null,{"$f":"Information!D7","v":"NOM et Prénom du Responsable Qualité"},null,"Responsable : ",{"$f":"Prioriser!D5","v":"NOM et Prénom"},{"$f":"Prioriser!D7","v":"Nom et Prénom des participants"}]
[null,null,null,{"$f":"Information!D8","v":"Email :"},{"$f":"Information!H8","v":"Tél :"},{"$f":"Prioriser!D6","v":"Tél :"},{"$f":"Prioriser!F6","v":"@ :"}]
[]
[null,null,{"$f":"Prioriser!B11","v":"Groupe 1"},{"$f":"Prioriser!C11","v":"Le projet dans son ensemble"}]
[null,null,"Niveau d'évaluation"," Taux de PRIORITÉ aux directives",null,null,"COMMENTAIRES sur les RÉSULTATS obtenus"]
[null,null,{"$f":"Directives!F34","v":"Niveau non concerné"},{"$f":"IF(C10=\"Niveau non concerné\",\"Niveau non concerné\",Directives!H34)","v":"Niveau non concerné"},null,null,"Commentaires :"]
[null,null,null,null,null,null,"DÉCISION : Plan d'action PRIORITAIRE"]
[null,null,null,null,null,null,"QUOI\nObjectifs à atteindre","QUI\nen Interne ou en Externe","QUAND ET OÙ\nDate et Champ d'application"]
[null,null,null,null,null,null,"Action n°1 :"]
[null,null,null,null,null,null,"Action n°2 :"]
[null,null,null,null,null,null,"Action n°3 :"]
[]
[null,null,{"$f":"Prioriser!B46","v":"Groupe 2"},{"$f":"Prioriser!C46","v":"Evaluation de besoins du projet"}]
[null,null,{"$f":"C9","v":"Niveau d'évaluation"},{"$f":"D9","v":" Taux de PRIORITÉ aux directives"},null,null,"COMMENTAIRES sur les RÉSULTATS obtenus"]
[null,null,{"$f":"Directives!F42","v":"Niveau non concerné"},{"$f":"IF(C19=\"Niveau non concerné\",\"Niveau non concerné\",Directives!H42)","v":"Niveau non concerné"},null,null,"Commentaires :"]
[null,null,null,null,null,null,"DÉCISION : Plan d'action PRIORITAIRE"]
[null,null,null,null,null,null,"QUOI\nObjectifs à atteindre","QUI\nen Interne ou en Externe","QUAND ET OÙ\nDate et Champ d'application"]
[null,null,null,null,null,null,"Action n°1 :"]
[null,null,null,null,null,null,"Action n°2 :"]
[null,null,null,null,null,null,"Action n°3 :"]
[]
[null,null,{"$f":"Prioriser!B59","v":"Groupe 3"},{"$f":"Prioriser!C59","v":"Prise en compte des spécifications et réglementations applicables au projet"}]
[null,null,{"$f":"C9","v":"Niveau d'évaluation"},{"$f":"D9","v":" Taux de PRIORITÉ aux directives"},null,null,"COMMENTAIRES sur les RÉSULTATS obtenus"]
[null,null,{"$f":"Directives!F45","v":"Niveau non concerné"},{"$f":"IF(C28=\"Niveau non concerné\",\"Niveau non concerné\",Directives!H45)","v":"Niveau non concerné"},null,null,"Commentaires :"]
[null,null,null,null,null,null,"DÉCISION : Plan d'action PRIORITAIRE"]
[null,null,null,null,null,null,"QUOI\nObjectifs à atteindre","QUI\nen Interne ou en Externe","QUAND ET OÙ\nDate et Champ d'application"]
[null,null,null,null,null,null,"Action n°1 :"]
[null,null,null,null,null,null,"Action n°2 :"]
[null,null,null,null,null,null,"Action n°3 :"]

{"sheet":"Innover","index":8,"n_rows":24,"n_cols":7,"rows_kept":24,"cut":false,"hidden":false,"merged":[[23,1,43,6],[9,1,9,6],[6,3,7,5],[1,1,1,6],[2,1,2,2],[2,3,2,6],[3,1,3,2],[3,3,3,5],[3,6,7,6],[4,1,5,2],[4,3,4,5],[5,3,5,4],[6,1,7,2]]}
[]
[null,{"$f":"Information!B3","v":"- PEPI - \nPlan d'Expérience pour la Performance Innovante,\n un outil pour l'industrie"}]
[null,{"$f":"Information!$A$6","v":"Etablissement :"},null,{"$f":"Information!D6","v":"Nom de l'établissement / entreprise / service..."}]
[null,"Date d'application d'innover :",null,"Date",null,null,"Signature du responsable du projet :\n\n\n\n\n"]
[null,"Responsable du projet :",null,{"$f":"Problématiser!D5","v":"NOM et Prénom"}]
[null,null,null,{"$f":"Problématiser!D6","v":"Tél :"},null,{"$f":"Problématiser!F6","v":"@ :"}]
[null,"L'équipe du projet :",null,{"$f":"Problématiser!D7","v":"Nom et Prénom des participants"}]
[]
[]
[null,"INNOVER"]
[]
[]
[]
[]
[]
[]
[]
[]
[]
[]
[]
[]
[]
[null,"L’innovation est très importante car elle permet d’augmenter la performance en étant plus rapide, plus précise, plus performante, moins couteuse. C’est l’innovation qui est le moteur de l’amélioration à tous les niveaux de l’industrie. \n\nLe processus d’innovation consiste dans le fait de découvrir, créer et développer des nouvelles idées. Ensuite, les idées doivent être affinées pour être utiles et utilisables afin de les transformer en profits, d’augmenter l’efficacité et de réduire les coûts. \n\nL’innovation est un élément central de la stratégie qui peut être appliquée par les industries. PEPI utilise l’innovation afin d’optimiser le résultat obtenu après son application et garantir la possibilité de conquérir le marché industriel. \n\nPour cela, il est nécessaire d’initier le processus d’innovation par une réflexion stratégique pour assurer que les idées finales soient complètement alignées avec la stratégie choisie au début. Le processus d’innovation passe par beaucoup d’étapes mentales, aussi l’un des conseils clé est de penser librement, en dehors de la « boîte », et ne pas se limiter. \n\nÊtre créatif, ouvert d’esprit et chercher des sources d’inspirations qui peuvent aider à trouver les bonnes idées!"]